{"text_format":"1","workbook":"xlsx","n_sheets":11,"sheets":["Instructions","Subsystem Inputs","Power Estimation Output","Lists","Power Data Pull","Power Data","Application Menus","Operation Modes","External Data Aquisition","Drop Down Lists","Working Sheet"],"not_rendered":{"charts":2,"images":0,"macros":1,"external_links":1,"defined_names":51,"comments":3,"pivot_tables":0},"unopened":[],"bounds":{"document_bytes":16777216,"sheet_cells":100000,"rows_first":2000,"rows_last":500,"rows_between":2000,"halvings":0,"cell_chars":16384,"cell_head_chars":4096},"cells_cut":0,"cells_raw":0,"read":"whole","date_system":"1900"}

{"sheet":"Instructions","index":0,"n_rows":24,"n_cols":2,"rows_kept":24,"cut":false,"hidden":false,"merged":[[0,0,0,8],[4,0,4,8],[5,0,5,8],[8,0,8,8],[10,0,10,8],[23,0,23,8],[24,0,24,8],[17,0,17,8],[19,0,19,8],[20,0,20,8],[21,0,21,8],[22,0,22,8]]}
["MSPM0 Power Estimator Spreadsheet"]
["Revision: 1.7"]
["2024-10-10"]
[]
["Summary"]
["This spreadsheet can help estimate the power consumption of your design based on used peripherals, operation temperature, and operation power domain"]
[]
["Instructions"]
["1. On the subsystems input tab, start by selecting the operation mode in B2, the operation temp in B3, the Execute from... in B4, and manually enter in the Supply voltage for the M0 in B5\n2. Based on the mode selected B6 and B7 will auto-populate with availible options for MCLK source and frequency, select from the choices in each box\n3. Click on \"Update Form\" which will populate the core current consumption and automatically enable any clocks that are selected in B6\n3. Peripherals and clocks that are enabled or optional will automatically populate with drop down lists for selecting operational parameters of each item\n4. Go through the peripherals and select the options that best match the mode for a particular duration\n5. Once all peripherals are added, add a time duration for the mode/operation\n6. Click on \"Add to Total\" button and the power consumption will be calculated based on the time period as a part of the complete duration, and the chart will populate with graphical data based on the timeline\n7. to remove the last operation from the list click the \"Remove\" button\n8. To reset sheet, click the \"Update/Reset View\" button next to the run mode drop down\n9. Once all the modes and times are added the Power estimation output will be populated with each mode with current consumption data for all active peripherals\n10. Add the desired location for the PDF report output and the name you want to use for the report. Click generate report and next go to the location you typed in and you should see a PDF version of the Power Estimation Output"]
[]
["Color Coding"]
[null,"Peripheral Cell (do not edit)"]
[null,"=Cell not availible for change currently"]
["--Select Option--","=Cell with availible dropdown menu"]
[null,"=Cell in which numerical data can be entered"]
[null,"=Total calculated Power value. Do not edit."]
[]
["Current Status and known Bugs"]
[]
["1. GPIO is currently not fully implemented"]
["2. DAC is not currently fully implemented"]
["3. Timers currnet consumption values are not fully implemented yet"]
["4. PMU and Flash has yet to be implemented, but the blocks are there for a placeholder"]
["5. SPI and I2C currently only have the data for Controller mode so selecting peripheral won't add to the total power"]

{"sheet":"Subsystem Inputs","index":1,"n_rows":54,"n_cols":17,"rows_kept":54,"cut":false,"hidden":false,"merged":[[52,7,52,8],[51,7,51,8],[48,7,48,8],[49,7,50,8],[49,9,50,10],[0,0,0,1],[8,0,8,15],[7,0,7,15],[9,7,9,15],[20,7,20,15],[9,0,9,6],[15,0,15,6],[18,0,18,6],[11,2,11,3],[44,7,45,15],[46,7,47,8],[49,11,50,12],[42,7,42,10],[43,7,43,10],[49,14,50,15],[49,13,50,13],[25,7,25,15],[42,0,42,6],[23,0,23,6],[32,0,32,6],[33,7,33,15],[53,7,53,8],[54,7,54,8],[55,7,55,8],[56,7,56,8],[57,7,57,8],[58,7,58,8],[59,7,59,8],[60,7,60,8],[61,7,61,8],[62,7,62,8]]}
["Device Initialization Parameters"]
["Operation Mode","Run 0"]
["Temperature","25C"]
["Mem Exec SRC","Flash"]
["Supply Voltage",3.3]
["MCLK Source","Enter CLK Source"]
["MCLK Frequency","Select Frequency"]
["MSPM0G Power Estimation Tool"]
["Peripheral Definition"]
["CORE FUNCTIONS",null,null,null,null,null,null,"COMMUNICATION"]
["OPERATING MODE","Enable/Disable","Parameter 1","Parameter 2","Current","Units","Total Power","OPERATING MODE","Enable/Disable","Parameter 1","Parameter 2","Parameter 3","Parameter 4","Current ","Units","Total Power"]
["CPU","EN",{"$f":"\"Base Current in \" &B2","v":"Base Current in Run 0"},null,0,"mA",0,"UART0","--Select Option--",null,null,null,null,0,"mA",0]
["DMA","--Select Option--"," "," ",0,"mA",0,"UART1","--Select Option--",null,null,null,null,0,"mA",0]
["Flash","EN",null," ",0,"mA",0,"UART2","--Select Option--",null,null,null,null,0,"mA",0]
["SRAM","EN",null," ",0,"mA",0,"UART3","--Select Option--",null,null,null,null,0,"mA",0]
["PMU",null,null,null,null,null,null,"SPI0","--Select Option--",null,null,null,null,0,"mA",0]
["OPERATING MODE","Enable/Disable","Parameter 1","Parameter 2","Current","Units","Total Power","SPI1","--Select Option--",null,null,null,null,0,"mA",0]
["Core regulator","FULL DRIVE",null,null,null,null,0,"I2C0","--Select Option--",null,null,null,null,0,"mA",0]
["FLASH MEMORY",null,null,null,null,null,null,"I2C1","--Select Option--",null,null,null,null,0,"mA",0]
["OPERATING MODE","Enable/Disable","Parameter 1","Parameter 2",null,"mA","Total Power","MCAN0","--Select Option--",null,null,null,null,0,"uA",0]
["VDD PRGM/ERASE",3.3," "," ",null,"V",null,"SIGNAL INTERFACE "]
["FLASH PGM","--Select Option--",null,null,0,"mA",0,"OPERATING MODE","Enable/Disable","Parameter 1","Parameter 2","Parameter 3","Parameter 4","Current ","Units","Total Power"]
["FLASH ERASE","--Select Option--"," "," ",0,"mA",0,"ADC0","--Select Option--",null,null,null,null,0,"mA",0]
["CLOCKS",null,null,null,null,null,null,"ADC1","--Select Option--",null,null,null,null,0,"mA",0]
["OPERATING MODE","Enable/Disable","Parameter 1","Parameter 2","Current","Units","Total Power","DAC0","--Select Option--",null,null,null,null,0,"mA",0]
["SYSOSC","EN"," ",null,0,"mA",0,"ANALOG PERIPHERALS"]
["LFOSC or LFXT","--Select Option--",null,null,0,"mA",0,"OPERATING MODE","Enable/Disable","Parameter 1","Parameter 2","Parameter 3","Parameter 4","Current ","Units","Total Power"]
["HFXT","--Select Option--",null,null,0,"uA",0,"OPA0","--Select Option--",null,null,null,null,0,"mA",0]
["SYSPLL","--Select Option--",null,null,0,"mA",0,"OPA1","--Select Option--",null,null,null,null,0,"mA",0]
["RTCCLK","32 kHz"," "," ",0,"µA",0,"GPAMP","--Select Option--",null,null,null,null,0,"mA",0]
["MFCLK","--Select Option--"," "," ",0,"mA",0,"COMP0","--Select Option--",null,null,null,null,0,"uA",0]
["MFPCLK","--Select Option--"," "," ",0,"µA",0,"COMP1","--Select Option--",null," ",null,null,0,"uA",0]
["TIMERS",null,null,null,null,null,null,"COMP2","--Select Option--",null,null,null,null,0,"uA",0]
["OPERATING MODE","Enable/Disable","Parameter 1","Parameter 2","Current","Units","Total Power","GPIO"]
["TIMA0","--Select Option--",null,null,0,"mA",0,"OPERATING MODE","Enable/Disable","Parameter 1","Parameter 2","Parameter 3","Parameter 4","Current ","Units","Total Power"]
["TIMA1","--Select Option--",null,null,0,"mA",0,"GPIOA","--Select Option--",null,null,null,null,0,"mA",0]
["TIMG0","--Select Option--",null,null,0,"mA",0,"GPIOB","--Select Option--",null,null,null,null,0,"mA",0," "]
["TIMG1","--Select Option--",null,null,0,"mA",0,null,null,null,null,null,null,null,null,null," "]
["TIMG6","--Select Option--",null,null,0,"mA",0]
["TIMG7","--Select Option--",null,null,0,"mA",0]
["TIMG8","--Select Option--",null," ",0,"uA",0]
["TIMG12","--Select Option--",null," ",0,"uA",0]
["PD1 PERIPHERALS",null,null,null,null,null,null,"C:\\ti\\Power Estimation Outputs\\"]
["OPERATING MODE","Enable/Disable","Parameter 1","Parameter 2","Current","Units","Total Power","Test"]
["WWDT0","--Select Option--"," "," ",0,"uA",0,{"$f":"\"Estimated Power Consumption for: \" &B2","v":"Estimated Power Consumption for: Run 0"}]
["WWDT1","--Select Option--"," "," ",0,"uA",0]
["RTC","--Select Option--"," "," ",0,"uA",0,"Total Esimated Power Consumption",null,"Value","Units","Period (ms)"]
["MATHACL","--Select Option--"," "," ",0,"uA",0,null,null,{"$f":"SUM(G12:G15,G18,G22:G23,G26:G32,G35:G42,G45:G51,P12:P20,P23:P25,P28:P33,P36:P37)*1000","v":0},"mW"]
["AES","--Select Option--"," "," ",0,"uA",0]
["CRC","--Select Option--"," "," ",0,"uA",0,"Operation Mode",null,"Total Estimated Power Consumption",null,"Time Period in Mode (mS)",null,"Total % in Time","Total Estimated Power"]
["TRNG","--Select Option--",null,null,0,"uA",0]
[]
[]
[null,null,null,null,null,null,null,null,null,null,null,null,null,null,null,null,{"$f":"IF(ISNUMBER(#REF!),#REF!+#REF!,\"\")","v":""}]

{"sheet":"Power Estimation Output","index":2,"n_rows":1,"n_cols":1,"rows_kept":1,"cut":false,"hidden":true,"merged":[[0,0,1,3]]}
["POWER ESTIMATION REPORT"]

{"sheet":"Lists","index":3,"n_rows":238,"n_cols":23,"rows_kept":238,"cut":false,"hidden":true,"merged":[]}
["Peripheral","Option 0","Option 1","Option 2","Option 3","Option 4","Option 5","Option 6","Option 7","Option 8"]
["CPU"]
[]
["DMA","--Select Option--"]
[null,"EN"]
[null,"DIS"]
[]
["Flash"]
["SRAM",null,null,null,null,null,null,null,null,null,null,null,null,null,null,null,null,null,null,null,null,"Unused Pin Configuration"]
["Core regulator",null,null,null,null,null,null,null,null,null,null,null,null,null,null,null,null,null,null,null,null,"Direction","Configure Output"]
["VDD PRGM/ERASE",{"$f":"'Subsystem Inputs'!B5","v":3.3}]
[]
["FLASH PGM","--Select Option--"]
[null,"EN",null,null,null,null,null,null,null,null,null,null,null,null,null,null,null,null,null,null,null,"--Select Option--","--Select Option--"]
[null,"DIS",null,null,null,null,null,null,null,null,null,null,null,null,null,null,null,null,null,null,null,"Output","Low"]
[]
["FLASH ERASE","--Select Option--"]
[null,"EN"]
[null,"DIS",null,null,null,null,null,null,null,null,null,null,null,null,null,null,null,null,null,null,null,"Input","High"]
[]
["MCLK Source","SYSOSC","SYSOSC","SYSPLL","LFOSC","LFXT"]
[null,"SYSPLL","SYSOSC","SYSPLL","LFOSC","LFXT"]
[null,"LFOSC","32 MHz","80 MHz","32 kHz","32 kHz"]
[null,"LFXT","4 MHz","48 MHz"]
[]
["SYSOSC","--Select Option--","--Select Frequency--",null,null,null,null,null,null,null,null,null,null,null,null,null,null,null,null,null,null,null,"--Select Option--"]
[null,"EN","32MHz",null,null,null,null,null,null,null,null,null,null,null,null,null,null,null,null,null,null,null,"No Resistor"]
[null,"DIS","4MHz",null,null,null,null,null,null,null,null,null,null,null,null,null,null,null,null,null,null,null,"Pull-Up Resistor"]
[]
["LFOSC or LFXT","--Select Option--",null,null,null,null,null,null,null,null,null,null,null,null,null,null,null,null,null,null,null,null,"Pull-Down Resistor"]
[null,"LFOSC"]
[null,"LFXT"]
[]
["HFXT","--Select Option--","--Select Frequency--"]
[null,"EN","4MHz"]
[null,"DIS","48MHz"]
[]
["SYSPLL","--Select Option--","--Select Frequency--"]
[null,"EN","48 MHz"]
[null,"DIS","80 MHz"]
[]
["RTCCLK"]
[]
["MFCLK","--Select Option--"]
[null,"EN"]
[null,"DIS"]
[]
["MFPCLK","--Select Option--"]
[null,"EN"]
[null,"DIS"]
[]
["LFCLK Monitor","--Select Option--"]
[null,"EN"]
[null,"DIS"]
[]
["MCLK Monitor","--Select Option--"]
[null,"EN"]
[null,"DIS"]
[]
["TIMA0","--Select Option--","--Select Option--"]
[null,"EN","Capture/Compare"]
[null,"DIS","PWM"]
[]
["TIMA1","--Select Option--","--Select Option--"]
[null,"EN","Capture/Compare"]
[null,"DIS","PWM"]
[]
["TIMG0","--Select Option--","--Select Option--"]
[null,"EN","Capture/Compare"]
[null,"DIS","PWM"]
[]
["TIMG1","--Select Option--","--Select Option--"]
[null,"EN","Capture/Compare"]
[null,"DIS","PWM"]
[]
["TIMG6","--Select Option--","--Select Option--"]
[null,"EN","Capture/Compare"]
[null,"DIS","PWM"]
[]
["TIMG7","--Select Option--","--Select Option--"]
[null,"EN","Capture/Compare"]
[null,"DIS","PWM"]
[]
["TIMG8","--Select Option--","--Select Option--"]
[null,"EN","Capture/Compare"]
[null,"DIS","PWM"]
[]
["TIMG12","--Select Option--","--Select Option--"]
[null,"EN","Capture/Compare"]
[null,"DIS","PWM"]
[]
["WWDT0","--Select Option--"]
[null,"EN"]
[null,"DIS"]
[]
["WWDT1","--Select Option--"]
[null,"EN"]
[null,"DIS"]
[]
["RTC","--Select Option--"]
[null,"EN"]
[null,"DIS"]
[]
["MATHACL","--Select Option--"]
[null,"EN"]
[null,"DIS"]
[]
["AES","--Select Option--"]
[null,"EN"]
[null,"DIS"]
[]
["CRC","--Select Option--"]
[null,"EN"]
[null,"DIS"]
[]
["TRNG","--Select Option--"]
[null,"EN"]
[null,"DIS"]
[]
["UART0","--Select Option--","Select Baud Rate"]
[null,"EN",9600]
[null,"DIS",19200]
[null,null,57600]
[null,null,115200]
[]
["UART1","--Select Option--","Select Baud Rate"]
[null,"EN",9600]
[null,"DIS",19200]
[null,null,57600]
[null,null,115200]
[]
["UART2","--Select Option--","Select Baud Rate"]
[null,"EN",9600]
[null,"DIS",19200]
[null,null,57600]
[null,null,115200]
[]
["UART3","--Select Option--","Select Baud Rate"]
[null,"EN",9600]
[null,"DIS",19200]
[null,null,57600]
[null,null,115200]
[]
["SPI0","--Select Option--","--Select Option--","--Select Data Rate--"]
[null,"EN","Controller Mode","1MHz"]
[null,"DIS","Peripheral Mode","2MHz"]
[null,null,null,"4MHz"]
[null,null,null,"8MHz"]
[null,null,null,"16MHz"]
[]
["SPI1","--Select Option--","--Select Option--","--Select Data Rate--"]
[null,"EN","Controller Mode","1MHz"]
[null,"DIS","Peripheral Mode","2MHz"]
[null,null,null,"4MHz"]
[null,null,null,"8MHz"]
[null,null,null,"16MHz"]
[]
["I2C0","--Select Option--","--Select Option--","--Select Data Rate--"]
[null,"EN","Controller Mode","Standard Mode"]
[null,"DIS","Peripheral Mode","Fast Mode"]
[null,null,null,"Fast Mode Plus"]
[]
["I2C1","--Select Option--","--Select Option--","--Select Data Rate--"]
[null,"EN","Controller Mode","Standard Mode"]
[null,"DIS","Peripheral Mode","Fast Mode"]
[null,null,null,"Fast Mode Plus"]
[]
["MCAN0","--Select Option--"]
[null,"EN"]
[null,"DIS"]
[]
["ADC0","--Select Option--","--Select SCOMP--","--Select CLKDIV--","--Select VREF Source--"]
[null,"EN",2,1,"1.4V Internal"]
[null,"DIS",3,2,"2.5V Internal"]
[null,null,7,4,"External"]
[null,null,15,8]
[]
["ADC1","--Select Option--","--Select SCOMP--","--Select CLKDIV--","--Select VREF Source--"]
[null,"EN",2,1,"1.4V Internal"]
[null,"DIS",3,2,"2.5V Internal"]
[null,null,7,4,"External"]
[null,null,15,8]
[]
["DAC0","--Select Option--","--Select VREF Source--","--Select Output Voltage--","--Select Output Voltage--"]
[null,"EN","1.4V Internal",2.5,1.4]
[null,"DIS","2.5V Internal",2,1.2]
[null,null,"External",1.5,1]
[null,null,null,1,0.8]
[null,null,null,0.5,0.6]
[null,null,null,null,0.5]
[null,null,null,null,0.4]
[null,null,null,null,0.2]
[]
["GPIOA","--Select Option--","--Input/Output--","--Select Pull-Up/Down--","--Select GPIO Type--","--Select Option--","--Select Option--","--Select Option--","--Select Option--","--Select GPIO Status--"]
[null,"EN","Input","None","Standard Drive (SDIO)","1.5 mA","1.5 mA","2 mA","4 mA","Low"]
[null,"DIS","Output","Pull-Up Resistor","High Speed (HSIO)","2 mA","2 mA","6 mA","8 mA","High"]
[null,null,null,"Pull-Down Resistor","High Drive (HDIO)","6 mA","3 mA","10 mA",null,"High-Z"]
[null,null,null,null,"5V Open Drain (ODIO)",null,"4 mA","20 mA"]
[null,null,null,null,null,null,"6 mA"]
[]
["GPIOB","--Select Option--","--Input/Output--","--Select Pull-Up/Down--","--Select GPIO Type--","--Select Option--",null,null,null,"--Select GPIO Status--"]
[null,"EN","Input","None","Standard Drive (SDIO)","1.5 mA",null,null,null,"Low"]
[null,"DIS","Output","Pull-Up Resistor",null,"2 mA",null,null,null,"High"]
[null,null,null,"Pull-Down Resistor",null,"6 mA",null,null,null,"High-Z"]
[]
["OPA0","--Select Option--","--Select Option--"]
[null,"EN","RRI = 0x0, GBW = 0x0 "]
[null,"DIS","RRI = 0x0, GBW = 0x01"]
[null,null,"RRI = 0x1, GBW = 0x0 "]
[null,null,"RRI = 0x1, GBW = 0x01"]
[]
["OPA1","--Select Option--","--Select Option--"]
[null,"EN","RRI = 0x0, GBW = 0x0 "]
[null,"DIS","RRI = 0x0, GBW = 0x01"]
[null,null,"RRI = 0x1, GBW = 0x0 "]
[null,null,"RRI = 0x1, GBW = 0x01"]
[]
["GPAMP","--Select Option--","--Select Option--"]
[null,"EN","0x00"]
[null,"DIS","0x01 or 0x02"]
[]
["COMP0","--Select Option--","--Select Option--"]
[null,"EN","High Speed Mode w/DAC"]
[null,"DIS","Low Power Mode w/DAC"]
[null,null,"High Speed Mode Comp Only"]
[null,null,"Low Power Mode Comp Only"]
[]
["COMP1","--Select Option--","--Select Option--"]
[null,"EN","High Speed Mode w/DAC"]
[null,"DIS","Low Power Mode w/DAC"]
[null,null,"High Speed Mode Comp Only"]
[null,null,"Low Power Mode Comp Only"]
[]
["COMP2","--Select Option--","--Select Option--"]
[null,"EN","High Speed Mode w/DAC"]
[null,"DIS","Low Power Mode w/DAC"]
[null,null,"High Speed Mode Comp Only"]
[null,null,"Low Power Mode Comp Only"]

{"sheet":"Power Data Pull","index":4,"n_rows":220,"n_cols":27,"rows_kept":220,"cut":false,"hidden":true,"merged":[]}
["Operation Mode","Temp","Execute From…","Freq.","Current","Units",null,"Peripheral","Condition 1","Condition 2","Notes","Consumption ","Units",null,"x Range","Min","Duration","Current","Max x","Max Y",null,null,null,"X Range Min","Y Value","Max X","Max Y"]
["Run 0","-40C","Flash","80 MHz",7.5,"mA",null,"SPI0","Controller Mode","16MHz",null,0.30600000000000005,"mA",null,0,0,0,0,{"$f":"MAX(S3:S9)","v":0},{"$f":"1.1*MAX(R2:R9)","v":0},null,null,null,{"$f":"Q2","v":0},{"$f":"'Subsystem Inputs'!J52","v":0},{"$f":"MAX(X2:X23)+10","v":10},{"$f":"IF(Y2<>0,CEILING(MAX(Y2:Y23),10),10)","v":10}]
["Run 0","25C","Flash","80 MHz",7.6,"mA",null,"SPI0","Controller Mode","8MHz",null,0.30200000000000005,"mA",null,{"$f":"'Subsystem Inputs'!J52","v":0},{"$f":"'Subsystem Inputs'!M52","v":0},{"$f":"SUM(P2:P3)-P2","v":0},{"$f":"'Subsystem Inputs'!O52","v":0},null,null,null,null,null,{"$f":"'Subsystem Inputs'!M52","v":0},{"$f":"Y2","v":0}]
["Run 0","85C","Flash","80 MHz",8,"mA",null,"SPI0","Controller Mode","4MHz",null,0.30299999999999994,"mA",null,{"$f":"'Subsystem Inputs'!J53","v":0},{"$f":"'Subsystem Inputs'!M53","v":0},{"$f":"P4+Q3","v":0},"",{"$f":"SUM(P3:P4)","v":0},null,null,null,null,{"$f":"X3","v":0},{"$f":"'Subsystem Inputs'!J53","v":0}]
["Run 0","105C","Flash","80 MHz",8,"mA",null,"SPI0","Controller Mode","2MHz",null,0.30299999999999994,"mA",null,{"$f":"'Subsystem Inputs'!J54","v":0},{"$f":"'Subsystem Inputs'!M54","v":0},{"$f":"Q4+P5","v":0},"",{"$f":"SUM(P3:P5)","v":0},null,null,null,null,{"$f":"'Subsystem Inputs'!M53+X4","v":0},{"$f":"Y4","v":0}]
["Run 0","125C","Flash","80 MHz",8.6,"mA",null,"SPI0","Controller Mode","1MHz",null,0.30299999999999994,"mA",null,{"$f":"'Subsystem Inputs'!J55","v":0},{"$f":"'Subsystem Inputs'!M55","v":0},{"$f":"Q5+P6","v":0},"",{"$f":"SUM(P3:P6)","v":0},null,null,null,null,{"$f":"X5","v":0},{"$f":"'Subsystem Inputs'!J54","v":0}]
["Run 0","-40C","Flash","48 MHz",4.8,"mA",null,"SPI1","Controller Mode","16MHz",null,0.30600000000000005,"mA",null,{"$f":"'Subsystem Inputs'!J56","v":0},{"$f":"'Subsystem Inputs'!M56","v":0},{"$f":"P7+Q6","v":0},"",{"$f":"SUM(P3:P7)","v":0},null,null,null,null,{"$f":"'Subsystem Inputs'!M54+X6","v":0},{"$f":"Y6","v":0}]
["Run 0","25C","Flash","48 MHz",4.9000000000000004,"mA",null,"SPI1","Controller Mode","8MHz",null,0.30200000000000005,"mA",null,{"$f":"'Subsystem Inputs'!J57","v":0},{"$f":"'Subsystem Inputs'!M57","v":0},{"$f":"P8+Q7","v":0},"",{"$f":"SUM(P3:P8)","v":0},null,null,null,null,{"$f":"X7","v":0},{"$f":"'Subsystem Inputs'!J55","v":0}]
["Run 0","85C","Flash","48 MHz",5.0999999999999996,"mA",null,"SPI1","Controller Mode","4MHz",null,0.30299999999999994,"mA",null,{"$f":"'Subsystem Inputs'!J58","v":0},{"$f":"'Subsystem Inputs'!M58","v":0},{"$f":"P9+Q8","v":0},"",{"$f":"SUM(P3:P9)","v":0},null,null,null,null,{"$f":"'Subsystem Inputs'!M55+X8","v":0},{"$f":"Y8","v":0}]
["Run 0","105C","Flash","48 MHz",5.2,"mA",null,"SPI1","Controller Mode","2MHz",null,0.30299999999999994,"mA",null,{"$f":"'Subsystem Inputs'!J59","v":0},{"$f":"'Subsystem Inputs'!M59","v":0},null,null,null,null,null,null,null,{"$f":"X9","v":0},{"$f":"'Subsystem Inputs'!J56","v":0}]
["Run 0","125C","Flash","48 MHz",5.7,"mA",null,"SPI1","Controller Mode","1MHz",null,0.30299999999999994,"mA",null,{"$f":"'Subsystem Inputs'!J60","v":0},{"$f":"'Subsystem Inputs'!M60","v":0},null,null,null,null,null,null,null,{"$f":"'Subsystem Inputs'!M56+X10","v":0},{"$f":"Y10","v":0}]
["Run 0","-40C","Flash","32 MHz",3.3,"mA",null,"I2C0","Controller Mode","Standard Mode",null,0.12599999999999989,"mA",null,{"$f":"'Subsystem Inputs'!J61","v":0},{"$f":"'Subsystem Inputs'!M61","v":0},null,null,null,null,null,null,null,{"$f":"X11","v":0},{"$f":"'Subsystem Inputs'!J57","v":0}]
["Run 0","25C","Flash","32 MHz",3.4,"mA",null,"I2C0","Controller Mode","Fast Mode",null,0.129,"mA",null,{"$f":"'Subsystem Inputs'!J62","v":0},{"$f":"'Subsystem Inputs'!M62","v":0},null,null,null,null,null,null,null,{"$f":"'Subsystem Inputs'!M57+X12","v":0},{"$f":"Y12","v":0}]
["Run 0","85C","Flash","32 MHz",3.7,"mA",null,"I2C0","Controller Mode","Fast Mode Plus",null,1.2959999999999998,"mA",null,null,null,null,null,null,null,null,null,null,{"$f":"X13","v":0},{"$f":"'Subsystem Inputs'!J58","v":0}]
["Run 0","105C","Flash","32 MHz",3.7,"mA",null,"I2C0","Peripheral Mode","Standard",null,0.14100000000000001,"mA",null,null,null,null,null,null,null,null,null,null,{"$f":"'Subsystem Inputs'!M58+X14","v":0},{"$f":"Y14","v":0}]
["Run 0","125C","Flash","32 MHz",4.0999999999999996,"mA",null,"I2C1","Controller Mode","Standard Mode",null,0.12599999999999989,"mA",null,null,null,null,null,null,null,null,null,null,{"$f":"X15","v":0},{"$f":"'Subsystem Inputs'!J59","v":0}]
["Run 0","-40C","Flash","4 MHz",0.6,"mA",null,"I2C1","Controller Mode","Fast Mode",null,0.129,"mA",null,null,null,null,null,null,null,null,null,null,{"$f":"'Subsystem Inputs'!M59+X16","v":0},{"$f":"Y16","v":0}]
["Run 0","25C","Flash","4 MHz",0.7,"mA",null,"I2C1","Controller Mode","Fast Mode Plus",null,1.2959999999999998,"mA",null,null,null,null,null,null,null,null,null,null,{"$f":"X17","v":0},{"$f":"'Subsystem Inputs'!J60","v":0}]
["Run 0","85C","Flash","4 MHz",0.8,"mA",null,"I2C1","Peripheral Mode","Standard",null,0.14100000000000001,"mA",null,null,null,null,null,null,null,null,null,null,{"$f":"'Subsystem Inputs'!M60+X18","v":0},{"$f":"Y18","v":0}]
["Run 0","105C","Flash","4 MHz",1,"mA",null,"LFOSC",null,null,null,2.9999999999999997E-4,"mA",null,null,null,null,null,null,null,null,null,null,{"$f":"X19","v":0},{"$f":"'Subsystem Inputs'!J61","v":0}]
["Run 0","125C","Flash","4 MHz",1.4,"mA",null,"SYSPLL",null,null,null,0.316,"mA",null,null,null,null,null,null,null,null,null,null,{"$f":"'Subsystem Inputs'!M61+X20","v":0},{"$f":"Y20","v":0}]
["Run 0","-40C","SRAM","80 MHz",5.9,"mA",null,"LFXT",null,null,null,2.0000000000000001E-4,"mA",null,null,null,null,null,null,null,null,null,null,{"$f":"X21","v":0},{"$f":"'Subsystem Inputs'!J62","v":0}]
["Run 0","25C","SRAM","80 MHz",6,"mA",null,"SYSOSC","4MHz",null,null,0.02,"mA",null,null,null,null,null,null,null,null,null,null,{"$f":"'Subsystem Inputs'!M62+X22","v":0},{"$f":"Y22","v":0}]
["Run 0","85C","SRAM","80 MHz",6.3,"mA",null,"SYSOSC","32MHz",null,null,0.08,"mA"]
["Run 0","105C","SRAM","80 MHz",6.4,"mA",null,"MATHACL",null,null,null,115,"uA"]
["Run 0","125C","SRAM","80 MHz",6.8,"mA",null,"WWDT0",null,null,null,0.3,"uA"]
["Run 0","-40C","SRAM","48 MHz",3.7,"mA",null,"WWDT1",null,null,null,0.3,"uA"]
["Run 0","25C","SRAM","48 MHz",3.8,"mA",null,"RTC",null,null,null,3.2224999999999997E-2,"uA"]
["Run 0","85C","SRAM","48 MHz",3.8,"mA",null,"AES",null,null,null,null,"uA"]
["Run 0","105C","SRAM","48 MHz",4.5,"mA",null,"CRC",null,null,null,null,"uA"]
["Run 0","125C","SRAM","48 MHz",5,"mA",null,"TRNG",null,null,null,107.32,"uA"]
["Run 0","-40C","SRAM","32 MHz",2.5,"mA",null,"UART0",9600,null,null,0.26994999999999991,"mA"]
["Run 0","25C","SRAM","32 MHz",2.6,"mA",null,"UART0",19200,null,null,0.27434999999999987,"mA"]
["Run 0","85C","SRAM","32 MHz",2.7,"mA",null,"UART0",57600,null,null,0.29889999999999994,"mA"]
["Run 0","105C","SRAM","32 MHz",3,"mA",null,"UART0",115200,null,null,0.33529999999999993,"mA"]
["Run 0","125C","SRAM","32 MHz",3.4,"mA",null,"UART1",9600,null,null,0.26994999999999991,"mA"]
["Run 0","-40C","SRAM","4 MHz",0.6,"mA",null,"UART1",19200,null,null,0.27434999999999987,"mA"]
["Run 0","25C","SRAM","4 MHz",0.6,"mA",null,"UART1",57600,null,null,0.29889999999999994,"mA"]
["Run 0","85C","SRAM","4 MHz",0.8,"mA",null,"UART1",115200,null,null,0.33529999999999993,"mA"]
["Run 0","105C","SRAM","4 MHz",0.9,"mA",null,"UART2",9600,null,null,0.26994999999999991,"mA"]
["Run 0","125C","SRAM","4 MHz",1,"mA",null,"UART2",19200,null,null,0.27434999999999987,"mA"]
["Run 1","-40C","Flash","80 MHz",7.5,"mA",null,"UART2",57600,null,null,0.29889999999999994,"mA"]
["Run 1","25C","Flash","80 MHz",7.6,"mA",null,"UART2",115200,null,null,0.33529999999999993,"mA"]
["Run 1","85C","Flash","80 MHz",8,"mA",null,"UART3",9600,null,null,0.26994999999999991,"mA"]
["Run 1","105C","Flash","80 MHz",8,"mA",null,"UART3",19200,null,null,0.27434999999999987,"mA"]
["Run 1","125C","Flash","80 MHz",8.6,"mA",null,"UART3",57600,null,null,0.29889999999999994,"mA"]
["Run 1","-40C","Flash","48 MHz",4.8,"mA",null,"UART3",115200,null,null,0.33529999999999993,"mA"]
["Run 1","25C","Flash","48 MHz",4.9000000000000004,"mA",null,"MCAN0"]
["Run 1","85C","Flash","48 MHz",5.0999999999999996,"mA",null,"ADC0",2,8,"Vref used for power",1.2277649999999998,"mA"]
["Run 1","105C","Flash","48 MHz",5.2,"mA",null,"ADC0",2,4,null,1.355645,"mA"]
["Run 1","125C","Flash","48 MHz",5.7,"mA",null,"ADC0",2,2,null,1.2530949999999998,"mA"]
["Run 1","-40C","Flash","32 MHz",3.3,"mA",null,"ADC0",2,1,null,1.4965183333333334,"mA"]
["Run 1","25C","Flash","32 MHz",3.4,"mA",null,"ADC0",3,1,null,1.4039516666666669,"mA"]
["Run 1","85C","Flash","32 MHz",3.7,"mA",null,"ADC0",7,1,null,1.5796349999999999,"mA"]
["Run 1","105C","Flash","32 MHz",3.7,"mA",null,"ADC0",15,1,null,1.6518766666666664,"mA"]
["Run 1","125C","Flash","32 MHz",4.0999999999999996,"mA",null,"ADC1",2,8,null,1.2277649999999998,"mA"]
["Run 1","-40C","Flash","4 MHz",0.6,"mA",null,"ADC1",2,4,null,1.355645,"mA"]
["Run 1","25C","Flash","4 MHz",0.7,"mA",null,"ADC1",2,2,null,1.2530949999999998,"mA"]
["Run 1","85C","Flash","4 MHz",0.8,"mA",null,"ADC1",2,1,null,1.4965183333333334,"mA"]
["Run 1","105C","Flash","4 MHz",1,"mA",null,"ADC1",3,1,null,1.4039516666666669,"mA"]
["Run 1","125C","Flash","4 MHz",1.4,"mA",null,"ADC1",7,1,null,1.5796349999999999,"mA"]
["Run 1","-40C","SRAM","80 MHz",5.9,"mA",null,"ADC1",15,1,null,1.6518766666666664,"mA"]
["Run 1","25C","SRAM","80 MHz",6,"mA",null,"DAC0","2.5V Internal",2.5,null,0.54300000000000015,"mA"]
["Run 1","85C","SRAM","80 MHz",6.3,"mA",null,"DAC0","2.5V Internal",2,null,0.55799999999999983,"mA"]
["Run 1","105C","SRAM","80 MHz",6.4,"mA",null,"DAC0","2.5V Internal",1.5,null,0.53799999999999981,"mA"]
["Run 1","125C","SRAM","80 MHz",6.8,"mA",null,"DAC0","2.5V Internal",1,null,0.4870000000000001,"mA"]
["Run 1","-40C","SRAM","48 MHz",3.7,"mA",null,"DAC0","2.5V Internal",0.5,null,0.46700000000000008,"mA"]
["Run 1","25C","SRAM","48 MHz",3.8,"mA",null,"DAC0","1.4V Internal",1.4,null,0.54430000000000023,"mA"]
["Run 1","85C","SRAM","48 MHz",3.8,"mA",null,"DAC0","1.4V Internal",1.2,null,0.49630000000000019,"mA"]
["Run 1","105C","SRAM","48 MHz",4.5,"mA",null,"DAC0","1.4V Internal",1,null,0.47829999999999995,"mA"]
["Run 1","125C","SRAM","48 MHz",5,"mA",null,"DAC0","1.4V Internal",0.8,null,0.43020000000000014,"mA"]
["Run 1","-40C","SRAM","32 MHz",2.5,"mA",null,"DAC0","1.4V Internal",0.6,null,0.50130000000000008,"mA"]
["Run 1","25C","SRAM","32 MHz",2.6,"mA",null,"DAC0","1.4V Internal",0.4,null,0.45230000000000015,"mA"]
["Run 1","85C","SRAM","32 MHz",2.7,"mA",null,"DAC0","1.4V Internal",0.2,null,0.43760000000000021,"mA"]
["Run 1","105C","SRAM","32 MHz",3,"mA",null,"OPA0","RRI = 0x0, GBW = 0x0 ",null,null,9.4E-2,"mA"]
["Run 1","125C","SRAM","32 MHz",3.4,"mA",null,"OPA0","RRI = 0x0, GBW = 0x01",null,null,0.31900000000000001,"mA"]
["Run 1","-40C","SRAM","4 MHz",0.6,"mA",null,"OPA0","RRI = 0x1, GBW = 0x0 ",null,null,0.11600000000000001,"mA"]
["Run 1","25C","SRAM","4 MHz",0.6,"mA",null,"OPA0","RRI = 0x1, GBW = 0x01",null,null,0.40100000000000002,"mA"]
["Run 1","85C","SRAM","4 MHz",0.8,"mA",null,"OPA1","RRI = 0x0, GBW = 0x0 ",null,null,9.4E-2,"mA"]
["Run 1","105C","SRAM","4 MHz",0.9,"mA",null,"OPA1","RRI = 0x0, GBW = 0x01",null,null,0.31900000000000001,"mA"]
["Run 1","125C","SRAM","4 MHz",1,"mA",null,"OPA1","RRI = 0x1, GBW = 0x0 ",null,null,0.11600000000000001,"mA"]
["Run 2","-40C","Flash","80 MHz",7.5,"mA",null,"OPA1","RRI = 0x1, GBW = 0x01",null,null,0.40100000000000002,"mA"]
["Run 2","25C","Flash","80 MHz",7.6,"mA",null,"GPAMP","0x00",null,null,9.7000000000000003E-2,"mA"]
["Run 2","85C","Flash","80 MHz",8,"mA",null,"GPAMP","0x01 or 0x02",null,null,9.2999999999999999E-2,"mA"]
["Run 2","105C","Flash","80 MHz",8,"mA",null,"COMP0","High Speed Mode w/DAC",null,null,130,"uA"]
["Run 2","125C","Flash","80 MHz",8.6,"mA",null,"COMP0","Low Power Mode w/DAC",null,null,0.84,"uA"]
["Run 2","-40C","Flash","48 MHz",4.8,"mA",null,"COMP0","High Speed Mode Comp Only",null,null,102,"uA"]
["Run 2","25C","Flash","48 MHz",4.9000000000000004,"mA",null,"COMP0","Low Power Mode Comp Only",null,null,0.7,"uA"]
["Run 2","85C","Flash","48 MHz",5.0999999999999996,"mA",null,"COMP1","High Speed Mode w/DAC",null,null,130,"uA"]
["Run 2","105C","Flash","48 MHz",5.2,"mA",null,"COMP1","Low Power Mode w/DAC",null,null,0.84,"uA"]
["Run 2","125C","Flash","48 MHz",5.7,"mA",null,"COMP1","High Speed Mode Comp Only",null,null,102,"uA"]
["Run 2","-40C","Flash","32 MHz",3.3,"mA",null,"COMP1","Low Power Mode Comp Only",null,null,0.7,"uA"]
["Run 2","25C","Flash","32 MHz",3.4,"mA",null,"COMP2","High Speed Mode w/DAC",null,null,130,"uA"]
["Run 2","85C","Flash","32 MHz",3.7,"mA",null,"COMP2","Low Power Mode w/DAC",null,null,0.84,"uA"]
["Run 2","105C","Flash","32 MHz",3.7,"mA",null,"COMP2","High Speed Mode Comp Only",null,null,102,"uA"]
["Run 2","125C","Flash","32 MHz",4.0999999999999996,"mA",null,"COMP2","Low Power Mode Comp Only",null,null,0.7,"uA"]
["Run 2","-40C","Flash","4 MHz",0.6,"mA",null,"TIMA0","Capture/Compare",null,null,9.7000000000000003E-2,"mA"]
["Run 2","25C","Flash","4 MHz",0.7,"mA",null,"TIMA0","PWM",null,null,0.22700000000000001,"mA"]
["Run 2","85C","Flash","4 MHz",0.8,"mA",null,"TIMA1","Capture/Compare",null,null,9.7000000000000003E-2,"mA"]
["Run 2","105C","Flash","4 MHz",1,"mA",null,"TIMA1","PWM",null,null,0.22700000000000001,"mA"]
["Run 2","125C","Flash","4 MHz",1.4,"mA",null,"TIMG0","Capture/Compare",null,null,9.7000000000000003E-2,"mA"]
["Run 2","-40C","SRAM","80 MHz",5.9,"mA",null,"TIMG0","PWM",null,null,0.44759999999999994,"mA"]
["Run 2","25C","SRAM","80 MHz",6,"mA",null,"TIMG1","Capture/Compare",null,null,9.7000000000000003E-2,"mA"]
["Run 2","85C","SRAM","80 MHz",6.3,"mA",null,"TIMG1","PWM",null,null,0.44759999999999994,"mA"]
["Run 2","105C","SRAM","80 MHz",6.4,"mA",null,"TIMG6","Capture/Compare",null,null,9.7000000000000003E-2,"mA"]
["Run 2","125C","SRAM","80 MHz",6.8,"mA",null,"TIMG6","PWM",null,null,0.44759999999999994,"mA"]
["Run 2","-40C","SRAM","48 MHz",3.7,"mA",null,"TIMG7","Capture/Compare",null,null,9.7000000000000003E-2,"mA"]
["Run 2","25C","SRAM","48 MHz",3.8,"mA",null,"TIMG7","PWM",null,null,0.44759999999999994,"mA"]
["Run 2","85C","SRAM","48 MHz",3.8,"mA",null,"TIMG8","Capture/Compare",null,null,9.7000000000000003E-2,"mA"]
["Run 2","105C","SRAM","48 MHz",4.5,"mA",null,"TIMG8","PWM",null,null,0.44759999999999994,"mA"]
["Run 2","125C","SRAM","48 MHz",5,"mA",null,"TIMG12","Capture/Compare",null,null,9.7000000000000003E-2,"mA"]
["Run 2","-40C","SRAM","32 MHz",2.5,"mA",null,"TIMG12","PWM",null,null,0.44759999999999994,"mA"]
["Run 2","25C","SRAM","32 MHz",2.6,"mA",null,"HFXT","4MHz",null,null,75,"uA"]
["Run 2","85C","SRAM","32 MHz",2.7,"mA",null,"HFXT","48MHz",null,null,600,"uA"]
["Run 2","105C","SRAM","32 MHz",3,"mA",null,"GPIOA"]
["Run 2","125C","SRAM","32 MHz",3.4,"mA"]
["Run 2","-40C","SRAM","4 MHz",0.6,"mA"]
["Run 2","25C","SRAM","4 MHz",0.6,"mA",null,"GPIOB"]
["Run 2","85C","SRAM","4 MHz",0.8,"mA"]
["Run 2","105C","SRAM","4 MHz",0.9,"mA"]
["Run 2","125C","SRAM","4 MHz",1,"mA"]
["Sleep 0","-40C","SYSPLL","80 MHz",2.9740000000000002,"mA"]
["Sleep 0","25C","SYSPLL","80 MHz",3.0390000000000001,"mA"]
["Sleep 0","85C","SYSPLL","80 MHz",3.262,"mA"]
["Sleep 0","105C","SYSPLL","80 MHz",3.35,"mA"]
["Sleep 0","125C","SYSPLL","80 MHz",3.4390000000000001,"mA"]
["Sleep 0","-40C","SYSPLL","48 MHz",2.0249999999999999,"mA"]
["Sleep 0","25C","SYSPLL","48 MHz",2.0750000000000002,"mA"]
["Sleep 0","85C","SYSPLL","48 MHz",2.262,"mA"]
["Sleep 0","105C","SYSPLL","48 MHz",2.3370000000000002,"mA"]
["Sleep 0","125C","SYSPLL","48 MHz",2.778,"mA"]
["Sleep 0","-40C","SYSOSC","32 MHz",1.355,"mA"]
["Sleep 0","25C","SYSOSC","32 MHz",1.399,"mA"]
["Sleep 0","85C","SYSOSC","32 MHz",1.5669999999999999,"mA"]
["Sleep 0","105C","SYSOSC","32 MHz",1.675,"mA"]
["Sleep 0","125C","SYSOSC","32 MHz",2.0939999999999999,"mA"]
["Sleep 0","-40C","SYSOSC","4 MHz",440,"uA"]
["Sleep 0","25C","SYSOSC","4 MHz",467,"uA"]
["Sleep 0","85C","SYSOSC","4 MHz",662,"uA"]
["Sleep 0","105C","SYSOSC","4 MHz",737,"uA"]
["Sleep 0","125C","SYSOSC","4 MHz",1.1399999999999999,"mA"]
["Sleep 1","-40C","SYSPLL","80 MHz",2.9740000000000002,"mA"]
["Sleep 1","25C","SYSPLL","80 MHz",3.0390000000000001,"mA"]
["Sleep 1","85C","SYSPLL","80 MHz",3.262,"mA"]
["Sleep 1","105C","SYSPLL","80 MHz",3.35,"mA"]
["Sleep 1","125C","SYSPLL","80 MHz",3.4390000000000001,"mA"]
["Sleep 1","-40C","SYSPLL","48 MHz",2.0249999999999999,"mA"]
["Sleep 1","25C","SYSPLL","48 MHz",2.0750000000000002,"mA"]
["Sleep 1","85C","SYSPLL","48 MHz",2.262,"mA"]
["Sleep 1","105C","SYSPLL","48 MHz",2.3370000000000002,"mA"]
["Sleep 1","125C","SYSPLL","48 MHz",2.778,"mA"]
["Sleep 1","-40C","SYSOSC","32 MHz",1.355,"mA"]
["Sleep 1","25C","SYSOSC","32 MHz",1.399,"mA"]
["Sleep 1","85C","SYSOSC","32 MHz",1.5669999999999999,"mA"]
["Sleep 1","105C","SYSOSC","32 MHz",1.675,"mA"]
["Sleep 1","125C","SYSOSC","32 MHz",2.0939999999999999,"mA"]
["Sleep 1","-40C","SYSOSC","4 MHz",440,"uA"]
["Sleep 1","25C","SYSOSC","4 MHz",467,"uA"]
["Sleep 1","85C","SYSOSC","4 MHz",662,"uA"]
["Sleep 1","105C","SYSOSC","4 MHz",737,"uA"]
["Sleep 1","125C","SYSOSC","4 MHz",1.1399999999999999,"mA"]
["Sleep 2","-40C","SYSPLL","80 MHz",2.9740000000000002,"mA"]
["Sleep 2","25C","SYSPLL","80 MHz",3.0390000000000001,"mA"]
["Sleep 2","85C","SYSPLL","80 MHz",3.262,"mA"]
["Sleep 2","105C","SYSPLL","80 MHz",3.35,"mA"]
["Sleep 2","125C","SYSPLL","80 MHz",3.4390000000000001,"mA"]
["Sleep 2","-40C","SYSPLL","48 MHz",2.0249999999999999,"mA"]
["Sleep 2","25C","SYSPLL","48 MHz",2.0750000000000002,"mA"]
["Sleep 2","85C","SYSPLL","48 MHz",2.262,"mA"]
["Sleep 2","105C","SYSPLL","48 MHz",2.3370000000000002,"mA"]
["Sleep 2","125C","SYSPLL","48 MHz",2.778,"mA"]
["Sleep 2","-40C","SYSOSC","32 MHz",1.355,"mA"]
["Sleep 2","25C","SYSOSC","32 MHz",1.399,"mA"]
["Sleep 2","85C","SYSOSC","32 MHz",1.5669999999999999,"mA"]
["Sleep 2","105C","SYSOSC","32 MHz",1.675,"mA"]
["Sleep 2","125C","SYSOSC","32 MHz",2.0939999999999999,"mA"]
["Sleep 2","-40C","SYSOSC","4 MHz",440,"uA"]
["Sleep 2","25C","SYSOSC","4 MHz",467,"uA"]
["Sleep 2","85C","SYSOSC","4 MHz",662,"uA"]
["Sleep 2","105C","SYSOSC","4 MHz",737,"uA"]
["Sleep 2","125C","SYSOSC","4 MHz",1.1399999999999999,"mA"]
["Stop 0","-40C","ULPCLK","4 MHz",331,"uA"]
["Stop 0","25C","ULPCLK","4 MHz",338,"uA"]
["Stop 0","85C","ULPCLK","4 MHz",343,"uA"]
["Stop 0","105C","ULPCLK","4 MHz",346,"uA"]
["Stop 0","125C","ULPCLK","4 MHz",357,"uA"]
["Stop 1","-40C","ULPCLK","4 MHz",174,"uA"]
["Stop 1","25C","ULPCLK","4 MHz",179,"uA"]
["Stop 1","85C","ULPCLK","4 MHz",185,"uA"]
["Stop 1","105C","ULPCLK","4 MHz",188,"uA"]
["Stop 1","125C","ULPCLK","4 MHz",198,"uA"]
["Stop 2","-40C","LFCLK","32 kHz",44,"uA"]
["Stop 2","25C","LFCLK","32 kHz",46,"uA"]
["Stop 2","85C","LFCLK","32 kHz",51,"uA"]
["Stop 2","105C","LFCLK","32 kHz",53,"uA"]
["Stop 2","125C","LFCLK","32 kHz",62,"uA"]
["Standby 0","-40C","LFOSC","32 kHz",2,"uA"]
["Standby 0","25C","LFOSC","32 kHz",2,"uA"]
["Standby 0","85C","LFOSC","32 kHz",4,"uA"]
["Standby 0","105C","LFOSC","32 kHz",7,"uA"]
["Standby 0","-40C","LFXT","32 kHz",2,"uA"]
["Standby 0","25C","LFXT","32 kHz",2,"uA"]
["Standby 0","85C","LFXT","32 kHz",4,"uA"]
["Standby 0","105C","LFXT","32 kHz",7,"uA"]
["Standby 1","125C","LFXT","32 kHz",16,"uA"]
["Standby 1","-40C","LFOSC","32 kHz",1.4,"uA"]
["Standby 1","25C","LFOSC","32 kHz",1.5,"uA"]
["Standby 1","85C","LFOSC","32 kHz",3,"uA"]
["Standby 1","105C","LFOSC","32 kHz",6,"uA"]
["Standby 1","125C","LFOSC","32 kHz",13,"uA"]
["Standby 1","-40C","LFXT","32 kHz",1.4,"uA"]
["Standby 1","25C","LFXT","32 kHz",1.5,"uA"]
["Standby 1","85C","LFXT","32 kHz",4,"uA"]
["Standby 1","105C","LFXT","32 kHz",6,"uA"]
["Standby 1","125C","LFXT","32 kHz",13,"uA"]
["Shutdown","-40C",null,null,40,"nA"]
["Shutdown","25C",null,null,80,"nA"]
["Shutdown","85C",null,null,730,"nA"]
["Shutdown","105C",null,null,1.73,"uA"]
["Shutdown","125C",null,null,4.8,"uA"]

{"sheet":"Power Data","index":5,"n_rows":226,"n_cols":15,"rows_kept":226,"cut":false,"hidden":true,"merged":[[99,0,99,3],[144,0,144,3],[84,5,84,9],[139,5,139,14],[128,5,128,8],[133,5,133,8],[84,0,84,3],[90,0,90,3],[100,5,100,7],[72,2,72,3],[146,5,146,14],[148,9,152,9],[148,14,152,14],[106,0,109,0],[92,0,95,0],[134,0,136,0],[132,0,132,3],[106,4,106,5],[104,0,104,3],[101,0,102,0],[126,0,126,3],[118,0,120,0],[121,0,124,0],[116,0,116,3],[111,0,111,3],[77,0,80,0],[44,0,44,3],[46,0,46,3],[48,0,48,3],[52,0,56,0],[51,0,51,3],[75,0,75,3],[73,2,73,3],[69,0,69,5],[64,0,64,1],[64,2,64,3],[71,0,72,0],[70,0,70,1],[71,1,72,1],[70,2,70,3],[71,2,71,3],[14,0,14,8],[21,8,24,8],[27,2,30,2],[65,2,65,3],[66,2,66,3],[63,0,63,5],[60,5,61,5],[60,1,61,1],[60,2,60,3],[61,2,61,3],[60,0,61,0],[41,0,41,3],[42,0,42,3],[1,8,9,8],[10,0,10,8],[11,0,13,0],[11,8,13,8],[1,0,9,0],[2,1,3,1],[4,1,5,1],[6,1,7,1],[8,1,9,1],[0,0,0,8],[59,2,59,3],[59,0,59,1],[58,0,58,5],[15,8,19,8],[16,1,17,1],[18,1,19,1],[35,0,35,3],[28,0,30,0],[15,0,19,0],[21,0,22,0],[22,2,23,2],[26,8,30,8],[32,8,33,8],[31,0,31,8],[49,0,50,0],[163,5,164,5],[147,0,147,3],[149,0,152,0],[154,5,155,5],[157,5,158,5],[160,5,161,5]]}
["Supply Current Characteristics"]
["IDD(RUN)","Parameter","MCLK","-40C","25C","85C","105C","125C","mA"]
[null,"MCLK=SYSPLL,\nSYSPLLREF=SYSOSC, CoreMark,\nexecute from flash","80 MHz",7.5,7.6,8,8,8.6]
[null,null,"48 MHz",4.8,4.9000000000000004,5.0999999999999996,5.2,5.7]
[null,"MCLK=SYSOSC, CoreMark, execute from flash","32 MHz",3.3,3.4,3.7,3.7,4.0999999999999996]
[null,null,"4 MHz",0.6,0.7,0.8,1,1.4]
[null,"MCLK=SYSPLL,\nSYSPLLREF=SYSOSC, CoreMark,\nexecute from SRAM","80 MHz",5.9,6,6.3,6.4,6.8]
[null,null,"48 MHz",3.7,3.8,3.8,4.5,5]
[null,"MCLK=SYSOSC, CoreMark,\nexecute from SRAM","32 MHz",2.5,2.6,2.7,3,3.4]
[null,null,"4 MHz",0.6,0.6,0.8,0.9,1]
[]
["IDD(RUN) per MHZ","Parameter","MCLK","-40C","25C","85C","105C","125C","μA/MHz"]
[null,"MCLK=SYSPLL,\nSYSPLLREF=SYSOSC, CoreMark,\nexecute from flash","80MHz",94,96,99,100,107]
[null,"MCLK=SYSPLL,\nSYSPLLREF=SYSOSC, While(1),\nexecute from flash","80MHz",52,53,55,57,64]
[]
["IDD(Sleep)","Parameter","MCLK","-40C","25C","85C","105C","125C","uA"]
[null,"MCLK=SYSPLL,\nSYSPLLREF=SYSOSC, CPU is\nhalted","80MHz",2974,3039,3262,3350,3439]
[null,null,"48MHz",2025,2075,2262,2337,2778]
[null,"MCLK=SYSOSC, CPU is halted","32MHz",1355,1399,1567,1675,2094]
[null,null,"4MHz",440,467,662,737,1140]
[]
["IDD(Stop0)","Parameter","ULPCLK","-40C","25C","85C","105C","125C","uA"]
[null,"SYSOSC=32MHz,\nUSE4MHZSTOP=0,\nDISABLESTOP=0","4MHz",331,338,343,346,357]
["IDD(Stop1)","SYSOSC=4MHz,\nUSE4MHZSTOP=1,\nDISABLESTOP=0",null,174,179,185,188,198]
["IDD(Stop2)","SYSOSC off, DISABLESTOP=1,\nULPCLK=LFCLK","32kHz",44,46,51,53,62]
[]
[null,"Parameter","ULPCLK","-40C","25C","85C","105C","125C","uA"]
["IDD(STBY0)","LFCLK=LFXT, STOPCLKSTBY=0,\nRTC enabled","32kHz",2,2,4,7,16]
["IDD(STBY1)","LFCLK=LFOSC, STOPCLKSTBY=1,\nRTC enabled",null,1.4,1.5,3,6,13]
[null,"LFCLK=LFXT, STOPCLKSTBY=1,\nRTC enabled",null,1.4,1.5,4,6,13]
[null,"LFCLK=LFXT, STOPCLKSTBY=1,\nGPIOA enabled",null,1.4,1.5,4,6,13]
[]
[null,"Parameter","VDD","-40C","25C","85C","105C","125C","nA"]
["IDD(SHDN)","Supply current in SHUTDOWN mode",3.3,40,80,730,1730,4800]
[]
["Flash Memory Characteristics"]
[null,"Parameter","Value","Unit"]
["VDD(PGM/Erase)","Program and erase supply voltage",3.3,"V"]
["IDD(ERASE)","Supply current from VDD during erase\noperation",10,"mA"]
["IDD(PGM)","Supply current from VDD during\nprogram operation",10,"mA"]
[]
["Clocking"]
["LFOSC Characteristics"]
["I(LFOSC) ","Current Consumption",300,"nA"]
["SYSPLL Characteristics"]
["I(SYSPLL)","Current Consumption",316,"uA"]
["Low Frequency Crystal/Clock"]
["I(LFXT)","Current Consumption",200,"nA"]
["High Frequency Crystal/Clock"]
["I(HFXT)","F(HFXT)=4MHZ, R(M)300ohm, C(L)12pF",75,"uA"]
[null,"F(HFXT)=48MHZ, R(M)30ohm, C(L)12pF,C(M)=6.26fF, L(M)=1.76mH",600,"uA"]
["SYSOSC"]
["ISYSOSC","fSYSOSC=4MHz",20,"uA"]
[null,"fSYSOSC=32MHz",80,"uA"]
[null,"fSYSOSC=32MHz, SETUSEFCL=1 (1)",90,"uA"]
[null,"Time from SYSOSC request to first SYSOSC edge on MCLK, device in RUN or SLEEP mode with MCLK=LFCLK",2,"uA"]
[null,"SETUSEFCL=1, SYSOSCCFG.FREQ=00, -40 ℃ ≤ Tj ≤ 30℃",27.6,"uA"]
[]
["Analog MUX VBOOST"]
["Parameter",null,"Test Conditions",null,"Value","Units"]
["I(VBST)","VBOOST current adder","MCLK/ULPCLK is not LFCLK, SYSOSC frequency is 4MHz",null,0.7,"uA"]
[null,null,"MCLK/ULPCLK is\nLFCLK",null,10.6]
[]
["ADC Characteristics"]
["Parameter",null,"Test Condition",null,"Value","Units"]
["I(ADC)","Operating supply current\ninto VDD terminal","FS = 4MSPS, VR+ = VDD",null,1.75,"mA","current versus throughput",null,"will get this at a later time"]
["ISupplyMon","Supply Monitor voltage divider current\nconsumption","ADC input channel: Supply Monitor",null,0.01,"uA",null," "]
["IVREF","VREF operating supply current(this spec is an estimation and will be more reliable once the IP is further in the design phase)","BUFCONFIG = {0, 1}, No load","BUFCONFIG = {0, 1}, No load",0.16600000000000001,"µA"]
[]
["VREF Characteristics"]
["Parameter",null,"Test Conditions",null,"Value","Units"]
["VREF","Voltage reference output voltage","BUFCONFIG = 1",null,1.4,"V"]
[null,null,"BUFCONFIG = 0",null,2.5,"V"]
["IVREF","VREF operating supply current","BUFCONFIG = {0, 1}, No load",null,166,"uA"]
[]
["Comparator Characteristics"]
["Parameter","Test Conditions","Value","Units"]
["Icomp","Vcm = VDD/2, 100mV overdrive, DAC output as a voltage reference, VDD is reference for DAC, High Speed Mode",130,"uA"]
[null,"Vcm = VDD/2, 100mV overdrive, DAC output as a voltage reference, VDD is reference for DAC, Low Power Mode",0.84,"uA"]
[null,"Vcm = VDD/2, 100mV overdrive, comparator only. High Speed Mode",102,"uA"]
[null,"Vcm = VDD/2, 100mV overdrive, comparator\nonly, Low Power Mode",0.7,"uA"]
["Vdac",null,"VDD","V"]
["Vdac-code","VIN = reference voltage into 8-bit DAC, code n = 0 to 255","VIN x (n+1)/256","V"]
[]
["DAC Characteristics",null,null,null,null,"DAC"]
["Parameter","Test Conditions","Value","Units",null,"VREF Source","Output Value","Current Consumption","Baseline","DAC Current Consumption"]
["VREF","External",{"$f":"'Subsystem Inputs'!B5","v":3.3},"V",null,"2.5V Internal",2.5,2.7690000000000001,2.226,{"$f":"H87-I87","v":0.54300000000000015}]
["VREF"," Internal(1.4V, 2.5V)","VDD","V",null,"2.5V Internal",2,2.7839999999999998,2.226,{"$f":"H88-I88","v":0.55799999999999983}]
["IDAC","VREF= VDD, No load",300,"uA",null,"2.5V Internal",1.5,2.7639999999999998,2.226,0.53799999999999981]
[null,null,null,null,null,"2.5V Internal",1,2.7130000000000001,2.226,0.4870000000000001]
["DAC Output Specifications",null,null,null,null,"2.5V Internal",0.5,2.6930000000000001,2.226,0.46700000000000008]
["Parameter","Test Conditions","Value","Units",null,"1.4V Internal",1.4,2.7703000000000002,2.226,0.54430000000000023]
["VO","No load, Vref = VDD, DATA = 0x0",20,"mV",null,"1.4V Internal",1.2,2.7223000000000002,2.226,0.49630000000000019]
[null,"No load, Vref = VDD, DATA = 0xFFF","VDD-0.01","V",null,"1.4V Internal",1,2.7042999999999999,2.226,0.47829999999999995]
[null,"Rload = 3.3kΩ, Vref = VDD, DATA = 0x0",0.13,"V",null,"1.4V Internal",0.8,2.6562000000000001,2.226,0.43020000000000014]
[null,"Rload = 3.3kΩ, Vref = VDD, DATA = 0xFFF","VDD-0.01","V",null,"1.4V Internal",0.6,2.7273000000000001,2.226,0.50130000000000008]
["IL(DAC)",null,1,"mA",null,"1.4V Internal",0.4,2.6783000000000001,2.226,0.45230000000000015]
["ROUT(DAC)","Rload = 3.3kΩ, Vref = VDD",1.2,"Ohm",null,"1.4V Internal",0.2,2.6636000000000002,2.226,0.43760000000000021]
[null,null,null,null,null,null,null,null,null,"80uA for VREF"]
["GPAMP Characteristics"]
["Parameter","Test Conditions","Value","Units",null,"Current numbers do not change in different power modes"]
["Iq","IO= 0 mA, RRI = 0x0",9.7000000000000003E-2,"mA",null,"Baseline number based on power domain (above) + peripheral current"]
[null,"IO= 0 mA, RRI = 0x1 or 0x2",9.2999999999999999E-2,"mA"]
[]
["OPA Characteristics"]
["Parameter","Test Conditions","Value","Units"]
["Iq","IO= 0mA, RRI = 0x0, GBW = 0x0 ",9.4E-2,"mA","DAC considerations"]
[null,"IO= 0mA, RRI = 0x0, GBW = 0x01",0.31900000000000001,"mA"]
[null,"IO= 0mA, RRI = 0x1, GBW = 0x0 ",0.11600000000000001,"mA"]
[null,"IO= 0mA, RRI = 0x1, GBW = 0x01",0.40100000000000002,"mA"]
[]
["TRNG"]
["Parameter","Test Conditions","Value","Units"]
["TRNGIACT","TRNG clock = 20MHz",115,"uA"]
["TRNGSUPPLY","TRNG supply input voltage","VDD","V"]
[]
["Digital IO Characteristics"]
["Parameter","Test Conditions","Value","Units"]
["V(OH) @ IO(MAX)","SDIO [VDD, IO(MAX), T]"]
[null,"HSIO [VDD, IO(MAX), T]"]
[null,"HDIO [VDD, IO(MAX), T]"]
["V(OL) @ IO(MAX)","SDIO [VDD, IO(MAX), T]"]
[null,"HSIO [VDD, IO(MAX), T]"]
[null,"HDIO [VDD, IO(MAX), T]"]
[null,"ODIO [VDD, IO(MAX), T]"]
[]
["PMU"]
["Parameter","Test Conditions","Value","Units"]
["IBOR, RUN","BOR current consumption in RUN/SLEEP/STOP mode",5,"uA",null,"I2C Controller"]
["IBOR, LP","BOR current consumption in STANDBY mode",50,"nA",null,"Mode","Total Consumption","Baseline","Peripheral consumption "]
["IPOR","POR current consumption",35,"nA",null,"Standard",2.3519999999999999,2.226,{"$f":"G131-H131","v":0.12599999999999989}]
[null,null,null,null,null,"Fast",2.355,2.226,{"$f":"G132-H132","v":0.129}]
["I2C",null,null,null,null,"Fast+",3.5219999999999998,2.226,{"$f":"G133-H133","v":1.2959999999999998}]
["Parameter","Test Conditions","Value","Units",null,"I2C Target"]
["Controller Mode","Standard Speed, No Unused pin configuration",{"$f":"0.0949999999999998*10^3","v":94.999999999999801},"uA",null,"Mode","Total Consumption","Baseline","Peripheral consumption "]
[null,"Fast Mode, No unused pin configuration",{"$f":"0.0979999999999999*10^3","v":97.999999999999901},"uA",null,"Standard",2.367,2.226,{"$f":"G136-H136","v":0.14100000000000001}]
[null,"Fast Mode Plus, No unused pin configuration",{"$f":"1.265*10^3","v":1265},"uA",null,"Fast"]
["Target Mode",null,{"$f":"0.11*10^3","v":110},"uA",null,"Fast+"]
[]
["SPI",null,null,null,null,"SPI Controller"]
["Parameter","Test Conditions","Value","Units",null,"Total consumption","Baseline","SPI Consumption ","Bus Speed","Notes","Total consumption ","Baseline","SPI Consumption ","Bus Speed","Notes"]
["Controller Mode","500kHz",0.17499999999999999,"mA",null,2.532,2.226,{"$f":"F142-G142","v":0.30600000000000005},"16 MHz","Continuous mode",2.5209999999999999,2.226,{"$f":"K142-L142","v":0.29499999999999993},"16 MHz","Single Shot"]
["Target Mode",null,null,null,null,2.528,2.226,{"$f":"F143-G143","v":0.30200000000000005},"8 MHz",null,2.5139999999999998,2.226,{"$f":"K143-L143","v":0.28799999999999981},"8 MHz"]
[null,null,null,null,null,2.5289999999999999,2.226,{"$f":"F144-G144","v":0.30299999999999994},"4 MHz",null,2.4460000000000002,2.226,{"$f":"K144-L144","v":0.2200000000000002},"4 MHz"]
["MATHACL",null,null,null,null,2.5289999999999999,2.226,{"$f":"F145-G145","v":0.30299999999999994},"2 MHz",null,2.444,2.226,{"$f":"K145-L145","v":0.21799999999999997},"2 MHz"]
["Parameter","Test Conditions","Value","Units",null,2.5289999999999999,2.226,{"$f":"F146-G146","v":0.30299999999999994},"1MHz",null,2.444,2.226,{"$f":"K146-L146","v":0.21799999999999997},"1MHz"]
["I MATHACL","Multiply, SIN, and DIV operations",0.115,"mA",null,"SPI Controller x2 (Sequential Data TX)"]
["UART",null,null,null,null,"Total consumption","Baseline","SPI Consumption ","Frequency","Notes","Total consumption ","Baseline","SPI Consumption ","Bus Speed","Notes"]
["Parameter","Test Conditions","Value","Units",null,4.431,2.226,{"$f":"F149-G149","v":2.2050000000000001},"16 MHz","Both Channels at same speed",2.7010000000000001,2.226,{"$f":"K149-L149","v":0.47500000000000009},"16 MHz","Sequential Single Shot same Bus CLK"]
["Baud Rate",9600,0.115,"mA",null,3.6859999999999999,2.226,{"$f":"F150-G150","v":1.46},"8 MHz",null,2.6480000000000001,2.226,{"$f":"K150-L150","v":0.42200000000000015},"8 MHz"]
[null,19200,null,null,null,3.1520000000000001,2.226,{"$f":"F151-G151","v":0.92600000000000016},"4 MHz",null,2.6379999999999999,2.226,{"$f":"K151-L151","v":0.41199999999999992},"4 MHz"]
[null,57600,null,null,null,2.802,2.226,{"$f":"F152-G152","v":0.57600000000000007},"2 MHz",null,2.637,2.226,{"$f":"K152-L152","v":0.41100000000000003},"2 MHz"]
[null,115200,null,null,null,2.61,2.226,{"$f":"F153-G153","v":0.3839999999999999},"1MHz",null,2.63,2.226,{"$f":"K153-L153","v":0.40399999999999991},"1MHz"]
[]
[null,null,null,null,null,9600,2.1141999999999999,2.1153,{"$f":"AVERAGE(G155,G156,H155,H156)","v":2.1160749999999995}]
[null,null,null,null,null,null,2.1162999999999998,2.1185]
[]
[null,null,null,null,null,19200,2.1206999999999998,2.1217000000000001,{"$f":"AVERAGE(G158:G159,H158:H159)","v":2.1215000000000002}]
[null,null,null,null,null,null,2.1212,2.1223999999999998]
[]
[null,null,null,null,null,57600,2.1454,2.1564999999999999,{"$f":"AVERAGE(G161:H162)","v":2.1486499999999999}]
[null,null,null,null,null,null,2.1457000000000002,2.1469999999999998]
[]
[null,null,null,null,null,115200,2.1821999999999999,2.1835,{"$f":"AVERAGE(G164:H165)","v":2.1828000000000003}]
[null,null,null,null,null,null,2.1819999999999999,2.1835,null,null,null,null,null,"500kHz",1.2277649999999998]
[null,null,null,null,null,null,null,null,null,null,null,null,null,"1MHz",1.355645]
[null,null,null,null,null,null,null,null,null,null,null,null,null,"1.5MHz",1.2530949999999998]
[null,null,null,null,null,null,null,null,null,null,null,null,null,"2MHz",1.4965183333333334]
[null,null,null,null,null,null,null,null,null,null,null,null,null,"2.5MHz",1.4039516666666669]
[null,null,null,null,null,null,null,null,null,null,null,null,null,"3.5MHz",1.5796349999999999]
["VDD","Temp","Unit","Device","CLKDIV","SCOMP","Baseline1","ADC IQQ","Baseline2","ADCIQQ+Baseline1","Throughput","ADC IQQ _mA",null,"4MHz",1.6518766666666664]
["VDD3.3","TEMP 25C","A3_NOM","N23",8,2,1.57238E-3,1.17939E-3,1.55714E-3,2.7517700000000002E-3,500000,1.1793899999999999]
["VDD3.3","TEMP 25C","A3_NOM","N26",8,2,1.57423E-3,1.2812800000000001E-3,1.55836E-3,2.8555099999999999E-3,500000,1.28128]
["VDD3.3","TEMP 25C","A3_NOM","N31",8,2,1.5904700000000001E-3,1.26691E-3,1.5757600000000001E-3,2.8573800000000001E-3,500000,1.26691]
["VDD3.3","TEMP 25C","A3_NOM","O25",8,2,1.5848399999999999E-3,1.14455E-3,1.57037E-3,2.7293899999999999E-3,500000,1.14455]
["VDD3.3","TEMP 25C","A3_NOM","O9",8,2,1.55152E-3,1.1961700000000001E-3,1.5367899999999999E-3,2.7476900000000001E-3,500000,1.19617]
["VDD3.3","TEMP 25C","A3_NOM","N35",8,2,1.61134E-3,1.2982899999999999E-3,1.5961300000000001E-3,2.9096199999999999E-3,500000,1.2982899999999999]
[null,null,null,null,null,null,null,null,null,null,null,{"$f":"AVERAGE(L172:L177)","v":1.2277649999999998}]
["VDD","Temp","Unit","Device","CLKDIV","SCOMP","Baseline1","ADC IQQ","Baseline2","ADCIQQ+Baseline1","Throughput","ADC IQQ _mA"]
["VDD3.3","TEMP 25C","A3_NOM","N23",4,2,1.57237E-3,1.30609E-3,1.5571999999999999E-3,2.8784599999999998E-3,1000000,1.30609]
["VDD3.3","TEMP 25C","A3_NOM","N26",4,2,1.57474E-3,1.40671E-3,1.5585099999999999E-3,2.9814500000000001E-3,1000000,1.4067099999999999]
["VDD3.3","TEMP 25C","A3_NOM","N31",4,2,1.59001E-3,1.38843E-3,1.57493E-3,2.9784400000000002E-3,1000000,1.3884300000000001]
["VDD3.3","TEMP 25C","A3_NOM","O25",4,2,1.5849900000000001E-3,1.27512E-3,1.5702800000000001E-3,2.8601199999999998E-3,1000000,1.27512]
["VDD3.3","TEMP 25C","A3_NOM","O9",4,2,1.5512099999999999E-3,1.3288099999999999E-3,1.5370200000000001E-3,2.8800100000000001E-3,1000000,1.32881]
["VDD3.3","TEMP 25C","A3_NOM","N35",4,2,1.61082E-3,1.4287099999999999E-3,1.5955699999999999E-3,3.0395299999999999E-3,1000000,1.4287099999999999]
[null,null,null,null,null,null,null,null,null,null,null,{"$f":"AVERAGE(L180:L185)","v":1.355645}]
["VDD","Temp","Unit","Device","CLKDIV","SCOMP","Baseline1","ADC IQQ","Baseline2","ADCIQQ+Baseline1","Throughput","ADC IQQ _mA"]
["VDD3.3","TEMP 25C","A3_NOM","N23",1,15,1.5723499999999999E-3,1.20499E-3,1.55679E-3,2.7773400000000001E-3,1523810,1.20499]
["VDD3.3","TEMP 25C","A3_NOM","N26",1,15,1.5739899999999999E-3,1.30573E-3,1.5586E-3,2.8797200000000001E-3,1523810,1.3057300000000001]
["VDD3.3","TEMP 25C","A3_NOM","N31",1,15,1.5896700000000001E-3,1.29043E-3,1.57467E-3,2.88011E-3,1523810,1.29043]
["VDD3.3","TEMP 25C","A3_NOM","O25",1,15,1.58515E-3,1.1707499999999999E-3,1.5704899999999999E-3,2.7558999999999999E-3,1523810,1.17075]
["VDD3.3","TEMP 25C","A3_NOM","O9",1,15,1.5513300000000001E-3,1.2222999999999999E-3,1.5369800000000001E-3,2.77363E-3,1523810,1.2222999999999999]
["VDD3.3","TEMP 25C","A3_NOM","N35",1,15,1.6110300000000001E-3,1.3243700000000001E-3,1.59581E-3,2.9353999999999999E-3,1523810,1.32437]
[null,null,null,null,null,null,null,null,null,null,null,{"$f":"AVERAGE(L188:L193)","v":1.2530949999999998}]
["VDD","Temp","Unit","Device","CLKDIV","SCOMP","Baseline1","ADC IQQ","Baseline2","ADCIQQ+Baseline1","Throughput","ADC IQQ _mA"]
["VDD3.3","TEMP 25C","A3_NOM","N23",2,2,1.57226E-3,1.4456499999999999E-3,1.55704E-3,3.01791E-3,2000000,1.4456500000000001]
["VDD3.3","TEMP 25C","A3_NOM","N26",2,2,1.57402E-3,1.54634E-3,1.5585E-3,3.12036E-3,2000000,1.54634]
["VDD3.3","TEMP 25C","A3_NOM","N31",2,2,1.58979E-3,1.5205799999999999E-3,1.5740800000000001E-3,3.1103599999999999E-3,2000000,1.52058]
["VDD3.3","TEMP 25C","A3_NOM","O25",2,2,1.58479E-3,1.42015E-3,1.5704E-3,3.0049299999999998E-3,2000000,1.42015]
["VDD3.3","TEMP 25C","A3_NOM","O9",2,2,1.5514700000000001E-3,1.47382E-3,1.5371600000000001E-3,3.0252999999999999E-3,2000000,1.4738199999999999]
["VDD3.3","TEMP 25C","A3_NOM","N35",2,2,1.61101E-3,1.5725699999999999E-3,1.59578E-3,3.18359E-3,2000000,1.57257]
[null,null,null,null,null,null,null,null,null,null,null,{"$f":"AVERAGE(L196:L201)","v":1.4965183333333334}]
["VDD","Temp","Unit","Device","CLKDIV","SCOMP","Baseline1","ADC IQQ","Baseline2","ADCIQQ+Baseline1","Throughput","ADC IQQ _mA"]
["VDD3.3","TEMP 25C","A3_NOM","N23",1,7,1.5725299999999999E-3,1.3544399999999999E-3,1.5571700000000001E-3,2.9269700000000001E-3,2461540,1.3544400000000001]
["VDD3.3","TEMP 25C","A3_NOM","N26",1,7,1.57409E-3,1.45465E-3,1.55861E-3,3.0287399999999998E-3,2461540,1.45465]
["VDD3.3","TEMP 25C","A3_NOM","N31",1,7,1.5900199999999999E-3,1.43235E-3,1.5748699999999999E-3,3.0223799999999999E-3,2461540,1.43235]
["VDD3.3","TEMP 25C","A3_NOM","O25",1,7,1.5851999999999999E-3,1.3253900000000001E-3,1.57051E-3,2.9105899999999998E-3,2461540,1.3253900000000001]
["VDD3.3","TEMP 25C","A3_NOM","O9",1,7,1.55148E-3,1.37776E-3,1.5371499999999999E-3,2.9292400000000001E-3,2461540,1.3777600000000001]
["VDD3.3","TEMP 25C","A3_NOM","N35",1,7,1.6109200000000001E-3,1.47912E-3,1.5958599999999999E-3,3.0900300000000001E-3,2461540,1.47912]
[null,null,null,null,null,null,null,null,null,null,null,{"$f":"AVERAGE(L204:L209)","v":1.4039516666666669}]
["VDD","Temp","Unit","Device","CLKDIV","SCOMP","Baseline1","ADC IQQ","Baseline2","ADCIQQ+Baseline1","Throughput","ADC IQQ _mA"]
["VDD3.3","TEMP 25C","A3_NOM","N23",1,3,1.5723899999999999E-3,1.52794E-3,1.557E-3,3.1003300000000001E-3,3555560,1.5279400000000001]
["VDD3.3","TEMP 25C","A3_NOM","N26",1,3,1.57434E-3,1.6270499999999999E-3,1.55842E-3,3.2013900000000001E-3,3555560,1.6270500000000001]
["VDD3.3","TEMP 25C","A3_NOM","N31",1,3,1.5911E-3,1.59841E-3,1.5745399999999999E-3,3.1895199999999999E-3,3555560,1.5984100000000001]
["VDD3.3","TEMP 25C","A3_NOM","O25",1,3,1.5850199999999999E-3,1.5063800000000001E-3,1.5705999999999999E-3,3.0914100000000002E-3,3555560,1.5063800000000001]
["VDD3.3","TEMP 25C","A3_NOM","O9",1,3,1.55152E-3,1.5587699999999999E-3,1.5370900000000001E-3,3.1102899999999999E-3,3555560,1.55877]
["VDD3.3","TEMP 25C","A3_NOM","N35",1,3,1.6108100000000001E-3,1.6592600000000001E-3,1.59556E-3,3.2700799999999999E-3,3555560,1.65926]
[null,null,null,null,null,null,null,null,null,null,null,{"$f":"AVERAGE(L212:L217)","v":1.5796349999999999}]
["VDD","Temp","Unit","Device","CLKDIV","SCOMP","Baseline1","ADC IQQ","Baseline2","ADCIQQ+Baseline1","Throughput","ADC IQQ _mA"]
["VDD3.3","TEMP 25C","A3_NOM","N23",1,2,1.57244E-3,1.5997100000000001E-3,1.5570499999999999E-3,3.1721499999999999E-3,4000000,1.59971]
["VDD3.3","TEMP 25C","A3_NOM","N26",1,2,1.57398E-3,1.6986099999999999E-3,1.5582199999999999E-3,3.2725900000000001E-3,4000000,1.69861]
["VDD3.3","TEMP 25C","A3_NOM","N31",1,2,1.5894800000000001E-3,1.6659999999999999E-3,1.57456E-3,3.2554799999999998E-3,4000000,1.6659999999999999]
["VDD3.3","TEMP 25C","A3_NOM","O25",1,2,1.5850599999999999E-3,1.58012E-3,1.57037E-3,3.1651800000000001E-3,4000000,1.58012]
["VDD3.3","TEMP 25C","A3_NOM","O9",1,2,1.5515500000000001E-3,1.63364E-3,1.5372000000000001E-3,3.1851900000000001E-3,4000000,1.63364]
["VDD3.3","TEMP 25C","A3_NOM","N35",1,2,1.61071E-3,1.73318E-3,1.5957E-3,3.34389E-3,4000000,1.7331799999999999]
[null,null,null,null,null,null,null,null,null,null,null,{"$f":"AVERAGE(L220:L225)","v":1.6518766666666664}]

{"sheet":"Application Menus","index":6,"n_rows":35,"n_cols":18,"rows_kept":35,"cut":false,"hidden":true,"merged":[[1,11,5,11],[27,11,28,11],[29,11,30,11],[22,11,23,11],[10,11,11,11],[12,11,17,11],[18,11,21,11],[6,11,9,11]]}
["Target Device","Port","Baud Rate","Measurement","Acquisition Frequency","Operation Mode","Add a Peripheral",null,"MCLK Source","MCLK Frequency",null,"Mode DD","MCLK DD","MCLK Freq DD"]
["DMM1",1,9600,"Voltage","Single Shot","Run 0","GPIOA",null,"SYSPLL","80 MHz",null,"Run 0","SYSPLL","80 MHz",null,"SYSPLL","80 MHz","Run 0"]
["DMM2",2,115200,"Current","Continuous","Run 1","GPIOB",null,null,"48 MHz",null,null,"SYSOSC","48 MHz",null,null,"48 MHz"]
[null,3,null,"Voltage (Mean)",null,"Run 2","ADC0",null,"SYSOSC","32 MHz",null,null,"LFOSC","32 MHz",null,"SYSOSC","32 MHz"]
[null,4,null,"Current (Mean)",null,"Sleep 0","ADC1",null,null,"4 MHz",null,null,"LFXT","4 MHz",null,null,"4 MHz"]
[null,null,null,null,null,"Sleep 1","DAC0",null,"ULPCLK","4 MHz",null,null,null,"32 kHz",null,"SYSOSC","32 MHz","Run 1"]
[null,null,null,null,null,"Sleep 2","OPA0",null,"LFOSC","32 kHz",null,"Run 1","SYSOSC","32 MHz",null,null,"4 MHz"]
[null,null,null,null,null,"Stop 0","OPA1",null,"LFXT","32 kHz",null,null,"LFOSC","4 MHz",null,"LFOSC & LFXT","32 kHz"]
[null,null,null,null,null,"Stop 1","GPAMP",null,"LFCLK","32 kHz",null,null,"LFXT","32 kHz",null,"LFOSC & LFXT","32 kHz","Run 2"]
[null,null,null,null,null,"Stop 2","COMP0",null,null,null,null,null,null,"32 kHz",null,"SYSPLL","80 MHz","Sleep 0"]
[null,null,null,null,null,"Standby 0","COMP1",null,null,null,null,"Run 2","LFOSC","32 kHz",null,null,"48 MHz"]
[null,null,null,null,null,"Standby 1","COMP2",null,null,null,null,null,"LFXT","32 kHz",null,"SYSOSC","32 MHz"]
[null,null,null,null,null,"Shutdown","RTC",null,null,null,null,"Sleep 0","SYSPLL","80 MHz",null,null,"4 MHz"]
[null,null,null,null,null,null,"TIMA0",null,null,null,null,null,"SYSOSC","48 MHz",null,"SYSPLL","80 MHz","Sleep 1"]
[null,null,null,null,null,null,"TIMA1",null,null,null,null,null,"LFOSC","32 MHz",null,null,"48 MHz"]
[null,null,null,null,null,null,"TIMG6",null,null,null,null,null,"LFXT","4 MHz",null,"SYSOSC","32 MHz"]
[null,null,null,null,null,null,"TIMG7",null,null,null,null,null,null,"32 kHz",null,null,"4 MHz"]
[null,null,null,null,null,null,"TIMG0",null,null,null,null,null,null,"32 kHz",null,"SYSPLL","80 MHz","Sleep 2"]
[null,null,null,null,null,null,"TIMG1",null,{"$f":"'Power Data'!I111","v":0},null,null,"Sleep 1","SYSOSC","32 MHz",null,null,"48 MHz"]
[null,null,null,null,null,null,"TIMG8",null,null,null,null,null,"LFOSC","4 MHz",null,"SYSOSC","32 MHz"]
[null,null,null,null,null,null,"TIMG12",null,null,null,null,null,"LFXT","32 kHz",null,null,"4 MHz"]
[null,null,null,null,null,null,"WWDT0",null,null,null,null,null,null,"32 kHz",null,"ULPCLK","4 MHz","Stop 0"]
[null,null,null,null,null,null,"WWDT1",null,null,null,null,"Sleep 2","LFOSC","32 kHz",null,"ULPCLK","4 MHz","Stop 1"]
[null,null,null,null,null,null,"SPI0",null,null,null,null,null,"LFXT","32 kHz",null,"LFCLK","32 kHz","Stop 2"]
[null,null,null,null,null,null,"SPI1",null,null,null,null,"Stop 0","ULPCLK","4 MHz",null,"LFOSC","32 kHz","Standby 0"]
[null,null,null,null,null,null,"I2C0",null,null,null,null,"Stop 1","ULPCLK","4 MHz",null,"LFXT"]
[null,null,null,null,null,null,"I2C1",null,null,null,null,"Stop 2","LFCLK","32 kHz",null,"LFOSC","32 kHz","Standby 1"]
[null,null,null,null,null,null,"UART0",null,null,null,null,"Standby 0","LFOSC","32 kHz",null,"LFXT"]
[null,null,null,null,null,null,"UART1",null,null,null,null,null,"LFXT","32 kHz"]
[null,null,null,null,null,null,"UART2",null,null,null,null,"Standby 1","LFOSC","32 kHz"]
[null,null,null,null,null,null,"UART3",null,null,null,null,null,"LFXT","32 kHz"]
[null,null,null,null,null,null,"MCAN0"]
[null,null,null,null,null,null,"MATHACL"]
[null,null,null,null,null,null,"AES"]
[null,null,null,null,null,null,"TRNG"]

{"sheet":"Operation Modes","index":7,"n_rows":64,"n_cols":20,"rows_kept":64,"cut":false,"hidden":true,"merged":[[49,0,58,0],[59,0,59,1],[60,0,60,1],[0,2,0,4],[2,0,5,0],[6,0,16,0],[17,0,19,0],[20,0,23,0],[0,0,1,1],[0,16,0,17],[0,5,0,7],[0,8,0,10],[0,11,0,12],[37,0,48,0]]}
["OPERATING MODE",null,"Run",null,null,"Sleep",null,null,"Stop",null,null,"Standby",null,null,null,null,"Population Values",null,null,"Mode Status"]
[null,null,"Run 0","Run 1","Run 2","Sleep 0","Sleep 1","Sleep 2","Stop 0","Stop 1","Stop 2","Standby 0","Standby 1","Shutdown",null,{"$f":"CELL(\"col\",INDEX('Operation Modes'!C2:N2,MATCH('Subsystem Inputs'!B2,'Operation Modes'!C2:N2,0)))","v":3},"SYSOSC",{"$f":"_xlfn.SWITCH('Subsystem Inputs'!$B$2,'Operation Modes'!$C$2,'Operation Modes'!C3,'Operation Modes'!$D$2,'Operation Modes'!D3,'Operation Modes'!$E$2,'Operation Modes'!E3,'Operation Modes'!$F$2,'Operation Modes'!F3,'Operation Modes'!$G$2,'Operation Modes'!G3,'Operation Modes'!$H$2,'Operation Modes'!H3,'Operation Modes'!$I$2,'Operation Modes'!I3,'Operation Modes'!$J$2,'Operation Modes'!J3,'Operation Modes'!$K$2,'Operation Modes'!K3,'Operation Modes'!$L$2,'Operation Modes'!L3,'Operation Modes'!$M$2,'Operation Modes'!M3,'Operation Modes'!$N$2,'Operation Modes'!N3)","v":"EN"},null,"EN"]
["Oscillators","SYSOSC","EN","EN","DIS","EN","EN","DIS","OPT","EN","DIS","DIS","DIS","OFF",null,null,"LFOSC or LFXT",{"$f":"_xlfn.SWITCH('Subsystem Inputs'!$B$2,'Operation Modes'!$C$2,'Operation Modes'!C4,'Operation Modes'!$D$2,'Operation Modes'!D4,'Operation Modes'!$E$2,'Operation Modes'!E4,'Operation Modes'!$F$2,'Operation Modes'!F4,'Operation Modes'!$G$2,'Operation Modes'!G4,'Operation Modes'!$H$2,'Operation Modes'!H4,'Operation Modes'!$I$2,'Operation Modes'!I4,'Operation Modes'!$J$2,'Operation Modes'!J4,'Operation Modes'!$K$2,'Operation Modes'!K4,'Operation Modes'!$L$2,'Operation Modes'!L4,'Operation Modes'!$M$2,'Operation Modes'!M4,'Operation Modes'!$N$2,'Operation Modes'!N4)","v":"EN (LFOSC or LFXT)"},null,"DIS"]
[null,"LFOSC or LFXT","EN (LFOSC or LFXT)","EN (LFOSC or LFXT)","EN (LFOSC or LFXT)","EN (LFOSC or LFXT)","EN (LFOSC or LFXT)","EN (LFOSC or LFXT)","EN (LFOSC or LFXT)","EN (LFOSC or LFXT)","EN (LFOSC or LFXT)","EN (LFOSC or LFXT)","EN (LFOSC or LFXT)","OFF",null,null,"HFXT",{"$f":"_xlfn.SWITCH('Subsystem Inputs'!$B$2,'Operation Modes'!$C$2,'Operation Modes'!C5,'Operation Modes'!$D$2,'Operation Modes'!D5,'Operation Modes'!$E$2,'Operation Modes'!E5,'Operation Modes'!$F$2,'Operation Modes'!F5,'Operation Modes'!$G$2,'Operation Modes'!G5,'Operation Modes'!$H$2,'Operation Modes'!H5,'Operation Modes'!$I$2,'Operation Modes'!I5,'Operation Modes'!$J$2,'Operation Modes'!J5,'Operation Modes'!$K$2,'Operation Modes'!K5,'Operation Modes'!$L$2,'Operation Modes'!L5,'Operation Modes'!$M$2,'Operation Modes'!M5,'Operation Modes'!$N$2,'Operation Modes'!N5)","v":"OPT"},null,"OPT"]
[null,"HFXT","OPT","DIS","DIS","OPT","DIS","DIS","DIS","DIS","DIS","DIS","DIS","OFF",null,null,"SYSPLL",{"$f":"_xlfn.SWITCH('Subsystem Inputs'!$B$2,'Operation Modes'!$C$2,'Operation Modes'!C6,'Operation Modes'!$D$2,'Operation Modes'!D6,'Operation Modes'!$E$2,'Operation Modes'!E6,'Operation Modes'!$F$2,'Operation Modes'!F6,'Operation Modes'!$G$2,'Operation Modes'!G6,'Operation Modes'!$H$2,'Operation Modes'!H6,'Operation Modes'!$I$2,'Operation Modes'!I6,'Operation Modes'!$J$2,'Operation Modes'!J6,'Operation Modes'!$K$2,'Operation Modes'!K6,'Operation Modes'!$L$2,'Operation Modes'!L6,'Operation Modes'!$M$2,'Operation Modes'!M6,'Operation Modes'!$N$2,'Operation Modes'!N6)","v":"OPT"},null,"OFF"]
[null,"SYSPLL","OPT","DIS","DIS","OPT","DIS","DIS","DIS","DIS","DIS","DIS","DIS","OFF",null,null,"CPUCLK",{"$f":"_xlfn.SWITCH('Subsystem Inputs'!$B$2,'Operation Modes'!$C$2,'Operation Modes'!C7,'Operation Modes'!$D$2,'Operation Modes'!D7,'Operation Modes'!$E$2,'Operation Modes'!E7,'Operation Modes'!$F$2,'Operation Modes'!F7,'Operation Modes'!$G$2,'Operation Modes'!G7,'Operation Modes'!$H$2,'Operation Modes'!H7,'Operation Modes'!$I$2,'Operation Modes'!I7,'Operation Modes'!$J$2,'Operation Modes'!J7,'Operation Modes'!$K$2,'Operation Modes'!K7,'Operation Modes'!$L$2,'Operation Modes'!L7,'Operation Modes'!$M$2,'Operation Modes'!M7,'Operation Modes'!$N$2,'Operation Modes'!N7)","v":"80 MHz"},null,"EN (LFOSC or LFXT)"]
["Clocks","CPUCLK","80 MHz","32 kHz","32 kHz","DIS","DIS","DIS","DIS","DIS","DIS","DIS","DIS","OFF",null,null,"MCLK to PD1",{"$f":"_xlfn.SWITCH('Subsystem Inputs'!$B$2,'Operation Modes'!$C$2,'Operation Modes'!C8,'Operation Modes'!$D$2,'Operation Modes'!D8,'Operation Modes'!$E$2,'Operation Modes'!E8,'Operation Modes'!$F$2,'Operation Modes'!F8,'Operation Modes'!$G$2,'Operation Modes'!G8,'Operation Modes'!$H$2,'Operation Modes'!H8,'Operation Modes'!$I$2,'Operation Modes'!I8,'Operation Modes'!$J$2,'Operation Modes'!J8,'Operation Modes'!$K$2,'Operation Modes'!K8,'Operation Modes'!$L$2,'Operation Modes'!L8,'Operation Modes'!$M$2,'Operation Modes'!M8,'Operation Modes'!$N$2,'Operation Modes'!N8)","v":"80 MHz"}]
[null,"MCLK to PD1","80 MHz","32 kHz","32 kHz","80 MHz","32 kHz","32 kHz","DIS","DIS","DIS","DIS","DIS","OFF",null,null,"ULPCLK to PD0",{"$f":"_xlfn.SWITCH('Subsystem Inputs'!$B$2,'Operation Modes'!$C$2,'Operation Modes'!C9,'Operation Modes'!$D$2,'Operation Modes'!D9,'Operation Modes'!$E$2,'Operation Modes'!E9,'Operation Modes'!$F$2,'Operation Modes'!F9,'Operation Modes'!$G$2,'Operation Modes'!G9,'Operation Modes'!$H$2,'Operation Modes'!H9,'Operation Modes'!$I$2,'Operation Modes'!I9,'Operation Modes'!$J$2,'Operation Modes'!J9,'Operation Modes'!$K$2,'Operation Modes'!K9,'Operation Modes'!$L$2,'Operation Modes'!L9,'Operation Modes'!$M$2,'Operation Modes'!M9,'Operation Modes'!$N$2,'Operation Modes'!N9)","v":"40 MHz"}]
[null,"ULPCLK to PD0","40 MHz","32 kHz","32 kHz","40 MHz","32 kHz","32 kHz","4 MHz","4 MHz","32 kHz","32 kHz","DIS","OFF",null,null,"ULPCLK to TIMG0/8",{"$f":"_xlfn.SWITCH('Subsystem Inputs'!$B$2,'Operation Modes'!$C$2,'Operation Modes'!C10,'Operation Modes'!$D$2,'Operation Modes'!D10,'Operation Modes'!$E$2,'Operation Modes'!E10,'Operation Modes'!$F$2,'Operation Modes'!F10,'Operation Modes'!$G$2,'Operation Modes'!G10,'Operation Modes'!$H$2,'Operation Modes'!H10,'Operation Modes'!$I$2,'Operation Modes'!I10,'Operation Modes'!$J$2,'Operation Modes'!J10,'Operation Modes'!$K$2,'Operation Modes'!K10,'Operation Modes'!$L$2,'Operation Modes'!L10,'Operation Modes'!$M$2,'Operation Modes'!M10,'Operation Modes'!$N$2,'Operation Modes'!N10)","v":"40 MHz"}]
[null,"ULPCLK to TIMG0/8","40 MHz","32 kHz","32 kHz","40 MHz","32 kHz","32 kHz","4 MHz","4 MHz","32 kHz","32 kHz","32 kHz","OFF",null,null,"RTCCLK",{"$f":"_xlfn.SWITCH('Subsystem Inputs'!$B$2,'Operation Modes'!$C$2,'Operation Modes'!C11,'Operation Modes'!$D$2,'Operation Modes'!D11,'Operation Modes'!$E$2,'Operation Modes'!E11,'Operation Modes'!$F$2,'Operation Modes'!F11,'Operation Modes'!$G$2,'Operation Modes'!G11,'Operation Modes'!$H$2,'Operation Modes'!H11,'Operation Modes'!$I$2,'Operation Modes'!I11,'Operation Modes'!$J$2,'Operation Modes'!J11,'Operation Modes'!$K$2,'Operation Modes'!K11,'Operation Modes'!$L$2,'Operation Modes'!L11,'Operation Modes'!$M$2,'Operation Modes'!M11,'Operation Modes'!$N$2,'Operation Modes'!N11)","v":"32 kHz"}]
[null,"RTCCLK","32 kHz","32 kHz","32 kHz","32 kHz","32 kHz","32 kHz","32 kHz","32 kHz","32 kHz","32 kHz","32 kHz","OFF",null,null,"MFCLK",{"$f":"_xlfn.SWITCH('Subsystem Inputs'!$B$2,'Operation Modes'!$C$2,'Operation Modes'!C12,'Operation Modes'!$D$2,'Operation Modes'!D12,'Operation Modes'!$E$2,'Operation Modes'!E12,'Operation Modes'!$F$2,'Operation Modes'!F12,'Operation Modes'!$G$2,'Operation Modes'!G12,'Operation Modes'!$H$2,'Operation Modes'!H12,'Operation Modes'!$I$2,'Operation Modes'!I12,'Operation Modes'!$J$2,'Operation Modes'!J12,'Operation Modes'!$K$2,'Operation Modes'!K12,'Operation Modes'!$L$2,'Operation Modes'!L12,'Operation Modes'!$M$2,'Operation Modes'!M12,'Operation Modes'!$N$2,'Operation Modes'!N12)","v":"OPT"}]
[null,"MFCLK","OPT","DIS","DIS","OPT","DIS","DIS","OPT","OPT","DIS","DIS","DIS","OFF",null,null,"MFPCLK",{"$f":"_xlfn.SWITCH('Subsystem Inputs'!$B$2,'Operation Modes'!$C$2,'Operation Modes'!C13,'Operation Modes'!$D$2,'Operation Modes'!D13,'Operation Modes'!$E$2,'Operation Modes'!E13,'Operation Modes'!$F$2,'Operation Modes'!F13,'Operation Modes'!$G$2,'Operation Modes'!G13,'Operation Modes'!$H$2,'Operation Modes'!H13,'Operation Modes'!$I$2,'Operation Modes'!I13,'Operation Modes'!$J$2,'Operation Modes'!J13,'Operation Modes'!$K$2,'Operation Modes'!K13,'Operation Modes'!$L$2,'Operation Modes'!L13,'Operation Modes'!$M$2,'Operation Modes'!M13,'Operation Modes'!$N$2,'Operation Modes'!N13)","v":"OPT"}]
[null,"MFPCLK","OPT","DIS","DIS","OPT","DIS","DIS","OPT","OPT","DIS","DIS","DIS","OFF",null,null,"LFCLK",{"$f":"_xlfn.SWITCH('Subsystem Inputs'!$B$2,'Operation Modes'!$C$2,'Operation Modes'!C14,'Operation Modes'!$D$2,'Operation Modes'!D14,'Operation Modes'!$E$2,'Operation Modes'!E14,'Operation Modes'!$F$2,'Operation Modes'!F14,'Operation Modes'!$G$2,'Operation Modes'!G14,'Operation Modes'!$H$2,'Operation Modes'!H14,'Operation Modes'!$I$2,'Operation Modes'!I14,'Operation Modes'!$J$2,'Operation Modes'!J14,'Operation Modes'!$K$2,'Operation Modes'!K14,'Operation Modes'!$L$2,'Operation Modes'!L14,'Operation Modes'!$M$2,'Operation Modes'!M14,'Operation Modes'!$N$2,'Operation Modes'!N14)","v":"32 kHz"}]
[null,"LFCLK","32 kHz","32 kHz","32 kHz","32 kHz","32 kHz","32 kHz","32 kHz","32 kHz","32 kHz","32 kHz","DIS","OFF",null,null,"LFCLK to TIMG0/8",{"$f":"_xlfn.SWITCH('Subsystem Inputs'!$B$2,'Operation Modes'!$C$2,'Operation Modes'!C15,'Operation Modes'!$D$2,'Operation Modes'!D15,'Operation Modes'!$E$2,'Operation Modes'!E15,'Operation Modes'!$F$2,'Operation Modes'!F15,'Operation Modes'!$G$2,'Operation Modes'!G15,'Operation Modes'!$H$2,'Operation Modes'!H15,'Operation Modes'!$I$2,'Operation Modes'!I15,'Operation Modes'!$J$2,'Operation Modes'!J15,'Operation Modes'!$K$2,'Operation Modes'!K15,'Operation Modes'!$L$2,'Operation Modes'!L15,'Operation Modes'!$M$2,'Operation Modes'!M15,'Operation Modes'!$N$2,'Operation Modes'!N15)","v":"32 kHz"}]
[null,"LFCLK to TIMG0/8","32 kHz","32 kHz","32 kHz","32 kHz","32 kHz","32 kHz","32 kHz","32 kHz","32 kHz","32 kHz","32 kHz","OFF",null,null,"LFCLK Monitor",{"$f":"_xlfn.SWITCH('Subsystem Inputs'!$B$2,'Operation Modes'!$C$2,'Operation Modes'!C16,'Operation Modes'!$D$2,'Operation Modes'!D16,'Operation Modes'!$E$2,'Operation Modes'!E16,'Operation Modes'!$F$2,'Operation Modes'!F16,'Operation Modes'!$G$2,'Operation Modes'!G16,'Operation Modes'!$H$2,'Operation Modes'!H16,'Operation Modes'!$I$2,'Operation Modes'!I16,'Operation Modes'!$J$2,'Operation Modes'!J16,'Operation Modes'!$K$2,'Operation Modes'!K16,'Operation Modes'!$L$2,'Operation Modes'!L16,'Operation Modes'!$M$2,'Operation Modes'!M16,'Operation Modes'!$N$2,'Operation Modes'!N16)","v":"OPT"}]
[null,"LFCLK Monitor","OPT","OPT","OPT","OPT","OPT","OPT","OPT","OPT","OPT","OPT","OPT","OFF",null,null,"MCLK Monitor",{"$f":"_xlfn.SWITCH('Subsystem Inputs'!$B$2,'Operation Modes'!$C$2,'Operation Modes'!C17,'Operation Modes'!$D$2,'Operation Modes'!D17,'Operation Modes'!$E$2,'Operation Modes'!E17,'Operation Modes'!$F$2,'Operation Modes'!F17,'Operation Modes'!$G$2,'Operation Modes'!G17,'Operation Modes'!$H$2,'Operation Modes'!H17,'Operation Modes'!$I$2,'Operation Modes'!I17,'Operation Modes'!$J$2,'Operation Modes'!J17,'Operation Modes'!$K$2,'Operation Modes'!K17,'Operation Modes'!$L$2,'Operation Modes'!L17,'Operation Modes'!$M$2,'Operation Modes'!M17,'Operation Modes'!$N$2,'Operation Modes'!N17)","v":"OPT"}]
[null,"MCLK Monitor","OPT","OPT","OPT","OPT","OPT","OPT","OPT","OPT","OPT","OPT","DIS","OFF",null,null,"POR monitor",{"$f":"_xlfn.SWITCH('Subsystem Inputs'!$B$2,'Operation Modes'!$C$2,'Operation Modes'!C18,'Operation Modes'!$D$2,'Operation Modes'!D18,'Operation Modes'!$E$2,'Operation Modes'!E18,'Operation Modes'!$F$2,'Operation Modes'!F18,'Operation Modes'!$G$2,'Operation Modes'!G18,'Operation Modes'!$H$2,'Operation Modes'!H18,'Operation Modes'!$I$2,'Operation Modes'!I18,'Operation Modes'!$J$2,'Operation Modes'!J18,'Operation Modes'!$K$2,'Operation Modes'!K18,'Operation Modes'!$L$2,'Operation Modes'!L18,'Operation Modes'!$M$2,'Operation Modes'!M18,'Operation Modes'!$N$2,'Operation Modes'!N18)","v":"EN"}]
["PMU","POR monitor","EN","EN","EN","EN","EN","EN","EN","EN","EN","EN","EN","EN",null,null,"BOR monitor",{"$f":"_xlfn.SWITCH('Subsystem Inputs'!$B$2,'Operation Modes'!$C$2,'Operation Modes'!C19,'Operation Modes'!$D$2,'Operation Modes'!D19,'Operation Modes'!$E$2,'Operation Modes'!E19,'Operation Modes'!$F$2,'Operation Modes'!F19,'Operation Modes'!$G$2,'Operation Modes'!G19,'Operation Modes'!$H$2,'Operation Modes'!H19,'Operation Modes'!$I$2,'Operation Modes'!I19,'Operation Modes'!$J$2,'Operation Modes'!J19,'Operation Modes'!$K$2,'Operation Modes'!K19,'Operation Modes'!$L$2,'Operation Modes'!L19,'Operation Modes'!$M$2,'Operation Modes'!M19,'Operation Modes'!$N$2,'Operation Modes'!N19)","v":"EN"}]
[null,"BOR monitor","EN","EN","EN","EN","EN","EN","EN","EN","EN","EN","EN","OFF",null,null,"Core regulator",{"$f":"_xlfn.SWITCH('Subsystem Inputs'!$B$2,'Operation Modes'!$C$2,'Operation Modes'!C20,'Operation Modes'!$D$2,'Operation Modes'!D20,'Operation Modes'!$E$2,'Operation Modes'!E20,'Operation Modes'!$F$2,'Operation Modes'!F20,'Operation Modes'!$G$2,'Operation Modes'!G20,'Operation Modes'!$H$2,'Operation Modes'!H20,'Operation Modes'!$I$2,'Operation Modes'!I20,'Operation Modes'!$J$2,'Operation Modes'!J20,'Operation Modes'!$K$2,'Operation Modes'!K20,'Operation Modes'!$L$2,'Operation Modes'!L20,'Operation Modes'!$M$2,'Operation Modes'!M20,'Operation Modes'!$N$2,'Operation Modes'!N20)","v":"FULL DRIVE"}]
[null,"Core regulator","FULL DRIVE","FULL DRIVE","FULL DRIVE","FULL DRIVE","FULL DRIVE","FULL DRIVE","REDUCED DRIVE","REDUCED DRIVE","REDUCED DRIVE","LOW DRIVE","LOW DRIVE","OFF",null,null,"CPU",{"$f":"_xlfn.SWITCH('Subsystem Inputs'!$B$2,'Operation Modes'!$C$2,'Operation Modes'!C21,'Operation Modes'!$D$2,'Operation Modes'!D21,'Operation Modes'!$E$2,'Operation Modes'!E21,'Operation Modes'!$F$2,'Operation Modes'!F21,'Operation Modes'!$G$2,'Operation Modes'!G21,'Operation Modes'!$H$2,'Operation Modes'!H21,'Operation Modes'!$I$2,'Operation Modes'!I21,'Operation Modes'!$J$2,'Operation Modes'!J21,'Operation Modes'!$K$2,'Operation Modes'!K21,'Operation Modes'!$L$2,'Operation Modes'!L21,'Operation Modes'!$M$2,'Operation Modes'!M21,'Operation Modes'!$N$2,'Operation Modes'!N21)","v":"EN"}]
["Core Functions","CPU","EN","EN","EN","DIS","DIS","DIS","DIS","DIS","DIS","DIS","DIS","OFF",null,null,"DMA",{"$f":"_xlfn.SWITCH('Subsystem Inputs'!$B$2,'Operation Modes'!$C$2,'Operation Modes'!C22,'Operation Modes'!$D$2,'Operation Modes'!D22,'Operation Modes'!$E$2,'Operation Modes'!E22,'Operation Modes'!$F$2,'Operation Modes'!F22,'Operation Modes'!$G$2,'Operation Modes'!G22,'Operation Modes'!$H$2,'Operation Modes'!H22,'Operation Modes'!$I$2,'Operation Modes'!I22,'Operation Modes'!$J$2,'Operation Modes'!J22,'Operation Modes'!$K$2,'Operation Modes'!K22,'Operation Modes'!$L$2,'Operation Modes'!L22,'Operation Modes'!$M$2,'Operation Modes'!M22,'Operation Modes'!$N$2,'Operation Modes'!N22)","v":"OPT"}]
[null,"DMA","OPT","OPT","OPT","OPT","OPT","OPT","DIS","DIS","DIS","DIS","DIS","OFF",null,null,"Flash",{"$f":"_xlfn.SWITCH('Subsystem Inputs'!$B$2,'Operation Modes'!$C$2,'Operation Modes'!C23,'Operation Modes'!$D$2,'Operation Modes'!D23,'Operation Modes'!$E$2,'Operation Modes'!E23,'Operation Modes'!$F$2,'Operation Modes'!F23,'Operation Modes'!$G$2,'Operation Modes'!G23,'Operation Modes'!$H$2,'Operation Modes'!H23,'Operation Modes'!$I$2,'Operation Modes'!I23,'Operation Modes'!$J$2,'Operation Modes'!J23,'Operation Modes'!$K$2,'Operation Modes'!K23,'Operation Modes'!$L$2,'Operation Modes'!L23,'Operation Modes'!$M$2,'Operation Modes'!M23,'Operation Modes'!$N$2,'Operation Modes'!N23)","v":"EN"}]
[null,"Flash","EN","EN","EN","EN","EN","EN","DIS","DIS","DIS","DIS","DIS","OFF",null,null,"SRAM",{"$f":"_xlfn.SWITCH('Subsystem Inputs'!$B$2,'Operation Modes'!$C$2,'Operation Modes'!C24,'Operation Modes'!$D$2,'Operation Modes'!D24,'Operation Modes'!$E$2,'Operation Modes'!E24,'Operation Modes'!$F$2,'Operation Modes'!F24,'Operation Modes'!$G$2,'Operation Modes'!G24,'Operation Modes'!$H$2,'Operation Modes'!H24,'Operation Modes'!$I$2,'Operation Modes'!I24,'Operation Modes'!$J$2,'Operation Modes'!J24,'Operation Modes'!$K$2,'Operation Modes'!K24,'Operation Modes'!$L$2,'Operation Modes'!L24,'Operation Modes'!$M$2,'Operation Modes'!M24,'Operation Modes'!$N$2,'Operation Modes'!N24)","v":"EN"}]
[null,"SRAM","EN","EN","EN","EN","EN","EN","DIS","DIS","DIS","DIS","DIS","OFF",null,null,"CRC",{"$f":"_xlfn.SWITCH('Subsystem Inputs'!$B$2,'Operation Modes'!$C$2,'Operation Modes'!C25,'Operation Modes'!$D$2,'Operation Modes'!D25,'Operation Modes'!$E$2,'Operation Modes'!E25,'Operation Modes'!$F$2,'Operation Modes'!F25,'Operation Modes'!$G$2,'Operation Modes'!G25,'Operation Modes'!$H$2,'Operation Modes'!H25,'Operation Modes'!$I$2,'Operation Modes'!I25,'Operation Modes'!$J$2,'Operation Modes'!J25,'Operation Modes'!$K$2,'Operation Modes'!K25,'Operation Modes'!$L$2,'Operation Modes'!L25,'Operation Modes'!$M$2,'Operation Modes'!M25,'Operation Modes'!$N$2,'Operation Modes'!N25)","v":"OPT"}]
["PD1 Peripherals","CRC","OPT","OPT","OPT","OPT","OPT","OPT","DIS","DIS","DIS","DIS","DIS","OFF",null,null,"UART3",{"$f":"_xlfn.SWITCH('Subsystem Inputs'!$B$2,'Operation Modes'!$C$2,'Operation Modes'!C26,'Operation Modes'!$D$2,'Operation Modes'!D26,'Operation Modes'!$E$2,'Operation Modes'!E26,'Operation Modes'!$F$2,'Operation Modes'!F26,'Operation Modes'!$G$2,'Operation Modes'!G26,'Operation Modes'!$H$2,'Operation Modes'!H26,'Operation Modes'!$I$2,'Operation Modes'!I26,'Operation Modes'!$J$2,'Operation Modes'!J26,'Operation Modes'!$K$2,'Operation Modes'!K26,'Operation Modes'!$L$2,'Operation Modes'!L26,'Operation Modes'!$M$2,'Operation Modes'!M26,'Operation Modes'!$N$2,'Operation Modes'!N26)","v":"OPT"}]
[null,"UART3","OPT","OPT","OPT","OPT","OPT","OPT","DIS","DIS","DIS","DIS","DIS","OFF",null,null,"SPI0",{"$f":"_xlfn.SWITCH('Subsystem Inputs'!$B$2,'Operation Modes'!$C$2,'Operation Modes'!C27,'Operation Modes'!$D$2,'Operation Modes'!D27,'Operation Modes'!$E$2,'Operation Modes'!E27,'Operation Modes'!$F$2,'Operation Modes'!F27,'Operation Modes'!$G$2,'Operation Modes'!G27,'Operation Modes'!$H$2,'Operation Modes'!H27,'Operation Modes'!$I$2,'Operation Modes'!I27,'Operation Modes'!$J$2,'Operation Modes'!J27,'Operation Modes'!$K$2,'Operation Modes'!K27,'Operation Modes'!$L$2,'Operation Modes'!L27,'Operation Modes'!$M$2,'Operation Modes'!M27,'Operation Modes'!$N$2,'Operation Modes'!N27)","v":"OPT"}]
[null,"SPI0","OPT","OPT","OPT","OPT","OPT","OPT","DIS","DIS","DIS","DIS","DIS","OFF",null,null,"SPI1",{"$f":"_xlfn.SWITCH('Subsystem Inputs'!$B$2,'Operation Modes'!$C$2,'Operation Modes'!C28,'Operation Modes'!$D$2,'Operation Modes'!D28,'Operation Modes'!$E$2,'Operation Modes'!E28,'Operation Modes'!$F$2,'Operation Modes'!F28,'Operation Modes'!$G$2,'Operation Modes'!G28,'Operation Modes'!$H$2,'Operation Modes'!H28,'Operation Modes'!$I$2,'Operation Modes'!I28,'Operation Modes'!$J$2,'Operation Modes'!J28,'Operation Modes'!$K$2,'Operation Modes'!K28,'Operation Modes'!$L$2,'Operation Modes'!L28,'Operation Modes'!$M$2,'Operation Modes'!M28,'Operation Modes'!$N$2,'Operation Modes'!N28)","v":"OPT"}]
[null,"SPI1","OPT","OPT","OPT","OPT","OPT","OPT","DIS","DIS","DIS","DIS","DIS","OFF",null,null,"MATHACL",{"$f":"_xlfn.SWITCH('Subsystem Inputs'!$B$2,'Operation Modes'!$C$2,'Operation Modes'!C29,'Operation Modes'!$D$2,'Operation Modes'!D29,'Operation Modes'!$E$2,'Operation Modes'!E29,'Operation Modes'!$F$2,'Operation Modes'!F29,'Operation Modes'!$G$2,'Operation Modes'!G29,'Operation Modes'!$H$2,'Operation Modes'!H29,'Operation Modes'!$I$2,'Operation Modes'!I29,'Operation Modes'!$J$2,'Operation Modes'!J29,'Operation Modes'!$K$2,'Operation Modes'!K29,'Operation Modes'!$L$2,'Operation Modes'!L29,'Operation Modes'!$M$2,'Operation Modes'!M29,'Operation Modes'!$N$2,'Operation Modes'!N29)","v":"OPT"}]
[null,"MATHACL","OPT","OPT","OPT","OPT","OPT","OPT","OFF","OFF","OFF","OFF","OFF","OFF",null,null,"AES",{"$f":"_xlfn.SWITCH('Subsystem Inputs'!$B$2,'Operation Modes'!$C$2,'Operation Modes'!C30,'Operation Modes'!$D$2,'Operation Modes'!D30,'Operation Modes'!$E$2,'Operation Modes'!E30,'Operation Modes'!$F$2,'Operation Modes'!F30,'Operation Modes'!$G$2,'Operation Modes'!G30,'Operation Modes'!$H$2,'Operation Modes'!H30,'Operation Modes'!$I$2,'Operation Modes'!I30,'Operation Modes'!$J$2,'Operation Modes'!J30,'Operation Modes'!$K$2,'Operation Modes'!K30,'Operation Modes'!$L$2,'Operation Modes'!L30,'Operation Modes'!$M$2,'Operation Modes'!M30,'Operation Modes'!$N$2,'Operation Modes'!N30)","v":"OPT"}]
[null,"AES","OPT","OPT","OPT","OPT","OPT","OPT","OFF","OFF","OFF","OFF","OFF","OFF",null,null,"MCAN0",{"$f":"_xlfn.SWITCH('Subsystem Inputs'!$B$2,'Operation Modes'!$C$2,'Operation Modes'!C31,'Operation Modes'!$D$2,'Operation Modes'!D31,'Operation Modes'!$E$2,'Operation Modes'!E31,'Operation Modes'!$F$2,'Operation Modes'!F31,'Operation Modes'!$G$2,'Operation Modes'!G31,'Operation Modes'!$H$2,'Operation Modes'!H31,'Operation Modes'!$I$2,'Operation Modes'!I31,'Operation Modes'!$J$2,'Operation Modes'!J31,'Operation Modes'!$K$2,'Operation Modes'!K31,'Operation Modes'!$L$2,'Operation Modes'!L31,'Operation Modes'!$M$2,'Operation Modes'!M31,'Operation Modes'!$N$2,'Operation Modes'!N31)","v":"OPT"}]
[null,"MCAN0","OPT","OPT","OPT","OPT","OPT","OPT","OFF","OFF","OFF","OFF","OFF","OFF",null,null,"TIMA0",{"$f":"_xlfn.SWITCH('Subsystem Inputs'!$B$2,'Operation Modes'!$C$2,'Operation Modes'!C32,'Operation Modes'!$D$2,'Operation Modes'!D32,'Operation Modes'!$E$2,'Operation Modes'!E32,'Operation Modes'!$F$2,'Operation Modes'!F32,'Operation Modes'!$G$2,'Operation Modes'!G32,'Operation Modes'!$H$2,'Operation Modes'!H32,'Operation Modes'!$I$2,'Operation Modes'!I32,'Operation Modes'!$J$2,'Operation Modes'!J32,'Operation Modes'!$K$2,'Operation Modes'!K32,'Operation Modes'!$L$2,'Operation Modes'!L32,'Operation Modes'!$M$2,'Operation Modes'!M32,'Operation Modes'!$N$2,'Operation Modes'!N32)","v":"OPT"}]
[null,"TIMA0","OPT","OPT","OPT","OPT","OPT","OPT","OFF","OFF","OFF","OFF","OFF","OFF",null,null,"TIMA1",{"$f":"_xlfn.SWITCH('Subsystem Inputs'!$B$2,'Operation Modes'!$C$2,'Operation Modes'!C33,'Operation Modes'!$D$2,'Operation Modes'!D33,'Operation Modes'!$E$2,'Operation Modes'!E33,'Operation Modes'!$F$2,'Operation Modes'!F33,'Operation Modes'!$G$2,'Operation Modes'!G33,'Operation Modes'!$H$2,'Operation Modes'!H33,'Operation Modes'!$I$2,'Operation Modes'!I33,'Operation Modes'!$J$2,'Operation Modes'!J33,'Operation Modes'!$K$2,'Operation Modes'!K33,'Operation Modes'!$L$2,'Operation Modes'!L33,'Operation Modes'!$M$2,'Operation Modes'!M33,'Operation Modes'!$N$2,'Operation Modes'!N33)","v":"OPT"}]
[null,"TIMA1","OPT","OPT","OPT","OPT","OPT","OPT","OFF","OFF","OFF","OFF","OFF","OFF",null,null,"TIMG6",{"$f":"_xlfn.SWITCH('Subsystem Inputs'!$B$2,'Operation Modes'!$C$2,'Operation Modes'!C34,'Operation Modes'!$D$2,'Operation Modes'!D34,'Operation Modes'!$E$2,'Operation Modes'!E34,'Operation Modes'!$F$2,'Operation Modes'!F34,'Operation Modes'!$G$2,'Operation Modes'!G34,'Operation Modes'!$H$2,'Operation Modes'!H34,'Operation Modes'!$I$2,'Operation Modes'!I34,'Operation Modes'!$J$2,'Operation Modes'!J34,'Operation Modes'!$K$2,'Operation Modes'!K34,'Operation Modes'!$L$2,'Operation Modes'!L34,'Operation Modes'!$M$2,'Operation Modes'!M34,'Operation Modes'!$N$2,'Operation Modes'!N34)","v":"OPT"}]
[null,"TIMG6","OPT","OPT","OPT","OPT","OPT","OPT","OFF","OFF","OFF","OFF","OFF","OFF",null,null,"TIMG7",{"$f":"_xlfn.SWITCH('Subsystem Inputs'!$B$2,'Operation Modes'!$C$2,'Operation Modes'!C35,'Operation Modes'!$D$2,'Operation Modes'!D35,'Operation Modes'!$E$2,'Operation Modes'!E35,'Operation Modes'!$F$2,'Operation Modes'!F35,'Operation Modes'!$G$2,'Operation Modes'!G35,'Operation Modes'!$H$2,'Operation Modes'!H35,'Operation Modes'!$I$2,'Operation Modes'!I35,'Operation Modes'!$J$2,'Operation Modes'!J35,'Operation Modes'!$K$2,'Operation Modes'!K35,'Operation Modes'!$L$2,'Operation Modes'!L35,'Operation Modes'!$M$2,'Operation Modes'!M35,'Operation Modes'!$N$2,'Operation Modes'!N35)","v":"OPT"}]
[null,"TIMG7","OPT","OPT","OPT","OPT","OPT","OPT","OFF","OFF","OFF","OFF","OFF","OFF",null,null,"TIMG1",{"$f":"_xlfn.SWITCH('Subsystem Inputs'!$B$2,'Operation Modes'!$C$2,'Operation Modes'!C36,'Operation Modes'!$D$2,'Operation Modes'!D36,'Operation Modes'!$E$2,'Operation Modes'!E36,'Operation Modes'!$F$2,'Operation Modes'!F36,'Operation Modes'!$G$2,'Operation Modes'!G36,'Operation Modes'!$H$2,'Operation Modes'!H36,'Operation Modes'!$I$2,'Operation Modes'!I36,'Operation Modes'!$J$2,'Operation Modes'!J36,'Operation Modes'!$K$2,'Operation Modes'!K36,'Operation Modes'!$L$2,'Operation Modes'!L36,'Operation Modes'!$M$2,'Operation Modes'!M36,'Operation Modes'!$N$2,'Operation Modes'!N36)","v":"OPT"}]
[null,"TIMG1","OPT","OPT","OPT","OPT","OPT","OPT","OFF","OFF","OFF","OFF","OFF","OFF",null,null,"TIMG12",{"$f":"_xlfn.SWITCH('Subsystem Inputs'!$B$2,'Operation Modes'!$C$2,'Operation Modes'!C37,'Operation Modes'!$D$2,'Operation Modes'!D37,'Operation Modes'!$E$2,'Operation Modes'!E37,'Operation Modes'!$F$2,'Operation Modes'!F37,'Operation Modes'!$G$2,'Operation Modes'!G37,'Operation Modes'!$H$2,'Operation Modes'!H37,'Operation Modes'!$I$2,'Operation Modes'!I37,'Operation Modes'!$J$2,'Operation Modes'!J37,'Operation Modes'!$K$2,'Operation Modes'!K37,'Operation Modes'!$L$2,'Operation Modes'!L37,'Operation Modes'!$M$2,'Operation Modes'!M37,'Operation Modes'!$N$2,'Operation Modes'!N37)","v":"OPT"}]
[null,"TIMG12","OPT","OPT","OPT","OPT","OPT","OPT","OFF","OFF","OFF","OFF","OFF","OFF",null,null,"TIMG0",{"$f":"_xlfn.SWITCH('Subsystem Inputs'!$B$2,'Operation Modes'!$C$2,'Operation Modes'!C38,'Operation Modes'!$D$2,'Operation Modes'!D38,'Operation Modes'!$E$2,'Operation Modes'!E38,'Operation Modes'!$F$2,'Operation Modes'!F38,'Operation Modes'!$G$2,'Operation Modes'!G38,'Operation Modes'!$H$2,'Operation Modes'!H38,'Operation Modes'!$I$2,'Operation Modes'!I38,'Operation Modes'!$J$2,'Operation Modes'!J38,'Operation Modes'!$K$2,'Operation Modes'!K38,'Operation Modes'!$L$2,'Operation Modes'!L38,'Operation Modes'!$M$2,'Operation Modes'!M38,'Operation Modes'!$N$2,'Operation Modes'!N38)","v":"OPT"}]
["PD0 Peripherals","TIMG0","OPT","OPT","OPT","OPT","OPT","OPT","OPT","OPT","OPT","OPT","OPT","OFF",null,null,"TIMG8",{"$f":"_xlfn.SWITCH('Subsystem Inputs'!$B$2,'Operation Modes'!$C$2,'Operation Modes'!C39,'Operation Modes'!$D$2,'Operation Modes'!D39,'Operation Modes'!$E$2,'Operation Modes'!E39,'Operation Modes'!$F$2,'Operation Modes'!F39,'Operation Modes'!$G$2,'Operation Modes'!G39,'Operation Modes'!$H$2,'Operation Modes'!H39,'Operation Modes'!$I$2,'Operation Modes'!I39,'Operation Modes'!$J$2,'Operation Modes'!J39,'Operation Modes'!$K$2,'Operation Modes'!K39,'Operation Modes'!$L$2,'Operation Modes'!L39,'Operation Modes'!$M$2,'Operation Modes'!M39,'Operation Modes'!$N$2,'Operation Modes'!N39)","v":"OPT"}]
[null,"TIMG8","OPT","OPT","OPT","OPT","OPT","OPT","OPT","OPT","OPT","OPT","OPT","OFF",null,null,"RTC",{"$f":"_xlfn.SWITCH('Subsystem Inputs'!$B$2,'Operation Modes'!$C$2,'Operation Modes'!C40,'Operation Modes'!$D$2,'Operation Modes'!D40,'Operation Modes'!$E$2,'Operation Modes'!E40,'Operation Modes'!$F$2,'Operation Modes'!F40,'Operation Modes'!$G$2,'Operation Modes'!G40,'Operation Modes'!$H$2,'Operation Modes'!H40,'Operation Modes'!$I$2,'Operation Modes'!I40,'Operation Modes'!$J$2,'Operation Modes'!J40,'Operation Modes'!$K$2,'Operation Modes'!K40,'Operation Modes'!$L$2,'Operation Modes'!L40,'Operation Modes'!$M$2,'Operation Modes'!M40,'Operation Modes'!$N$2,'Operation Modes'!N40)","v":"OPT"}]
[null,"RTC","OPT","OPT","OPT","OPT","OPT","OPT","OPT","OPT","OPT","OPT","OPT","OFF",null,null,"UART0",{"$f":"_xlfn.SWITCH('Subsystem Inputs'!$B$2,'Operation Modes'!$C$2,'Operation Modes'!C41,'Operation Modes'!$D$2,'Operation Modes'!D41,'Operation Modes'!$E$2,'Operation Modes'!E41,'Operation Modes'!$F$2,'Operation Modes'!F41,'Operation Modes'!$G$2,'Operation Modes'!G41,'Operation Modes'!$H$2,'Operation Modes'!H41,'Operation Modes'!$I$2,'Operation Modes'!I41,'Operation Modes'!$J$2,'Operation Modes'!J41,'Operation Modes'!$K$2,'Operation Modes'!K41,'Operation Modes'!$L$2,'Operation Modes'!L41,'Operation Modes'!$M$2,'Operation Modes'!M41,'Operation Modes'!$N$2,'Operation Modes'!N41)","v":"OPT"}]
[null,"UART0","OPT","OPT","OPT","OPT","OPT","OPT","OPT","OPT","OPT","OPT","OPT","OFF",null,null,"UART1",{"$f":"_xlfn.SWITCH('Subsystem Inputs'!$B$2,'Operation Modes'!$C$2,'Operation Modes'!C42,'Operation Modes'!$D$2,'Operation Modes'!D42,'Operation Modes'!$E$2,'Operation Modes'!E42,'Operation Modes'!$F$2,'Operation Modes'!F42,'Operation Modes'!$G$2,'Operation Modes'!G42,'Operation Modes'!$H$2,'Operation Modes'!H42,'Operation Modes'!$I$2,'Operation Modes'!I42,'Operation Modes'!$J$2,'Operation Modes'!J42,'Operation Modes'!$K$2,'Operation Modes'!K42,'Operation Modes'!$L$2,'Operation Modes'!L42,'Operation Modes'!$M$2,'Operation Modes'!M42,'Operation Modes'!$N$2,'Operation Modes'!N42)","v":"OPT"}]
[null,"UART1","OPT","OPT","OPT","OPT","OPT","OPT","OPT","OPT","OPT","OPT","OPT","OFF",null,null,"UART2",{"$f":"_xlfn.SWITCH('Subsystem Inputs'!$B$2,'Operation Modes'!$C$2,'Operation Modes'!C43,'Operation Modes'!$D$2,'Operation Modes'!D43,'Operation Modes'!$E$2,'Operation Modes'!E43,'Operation Modes'!$F$2,'Operation Modes'!F43,'Operation Modes'!$G$2,'Operation Modes'!G43,'Operation Modes'!$H$2,'Operation Modes'!H43,'Operation Modes'!$I$2,'Operation Modes'!I43,'Operation Modes'!$J$2,'Operation Modes'!J43,'Operation Modes'!$K$2,'Operation Modes'!K43,'Operation Modes'!$L$2,'Operation Modes'!L43,'Operation Modes'!$M$2,'Operation Modes'!M43,'Operation Modes'!$N$2,'Operation Modes'!N43)","v":"OPT"}]
[null,"UART2","OPT","OPT","OPT","OPT","OPT","OPT","OPT","OPT","OPT","OPT","OPT","OFF",null,null,"I2C0",{"$f":"_xlfn.SWITCH('Subsystem Inputs'!$B$2,'Operation Modes'!$C$2,'Operation Modes'!C44,'Operation Modes'!$D$2,'Operation Modes'!D44,'Operation Modes'!$E$2,'Operation Modes'!E44,'Operation Modes'!$F$2,'Operation Modes'!F44,'Operation Modes'!$G$2,'Operation Modes'!G44,'Operation Modes'!$H$2,'Operation Modes'!H44,'Operation Modes'!$I$2,'Operation Modes'!I44,'Operation Modes'!$J$2,'Operation Modes'!J44,'Operation Modes'!$K$2,'Operation Modes'!K44,'Operation Modes'!$L$2,'Operation Modes'!L44,'Operation Modes'!$M$2,'Operation Modes'!M44,'Operation Modes'!$N$2,'Operation Modes'!N44)","v":"OPT"}]
[null,"I2C0","OPT","OPT","OPT","OPT","OPT","OPT","OPT","OPT","OPT","OPT","OPT","OFF",null,null,"I2C1",{"$f":"_xlfn.SWITCH('Subsystem Inputs'!$B$2,'Operation Modes'!$C$2,'Operation Modes'!C45,'Operation Modes'!$D$2,'Operation Modes'!D45,'Operation Modes'!$E$2,'Operation Modes'!E45,'Operation Modes'!$F$2,'Operation Modes'!F45,'Operation Modes'!$G$2,'Operation Modes'!G45,'Operation Modes'!$H$2,'Operation Modes'!H45,'Operation Modes'!$I$2,'Operation Modes'!I45,'Operation Modes'!$J$2,'Operation Modes'!J45,'Operation Modes'!$K$2,'Operation Modes'!K45,'Operation Modes'!$L$2,'Operation Modes'!L45,'Operation Modes'!$M$2,'Operation Modes'!M45,'Operation Modes'!$N$2,'Operation Modes'!N45)","v":"OPT"}]
[null,"I2C1","OPT","OPT","OPT","OPT","OPT","OPT","OPT","OPT","OPT","OPT","OPT","OFF",null,null,"GPIOA",{"$f":"_xlfn.SWITCH('Subsystem Inputs'!$B$2,'Operation Modes'!$C$2,'Operation Modes'!C46,'Operation Modes'!$D$2,'Operation Modes'!D46,'Operation Modes'!$E$2,'Operation Modes'!E46,'Operation Modes'!$F$2,'Operation Modes'!F46,'Operation Modes'!$G$2,'Operation Modes'!G46,'Operation Modes'!$H$2,'Operation Modes'!H46,'Operation Modes'!$I$2,'Operation Modes'!I46,'Operation Modes'!$J$2,'Operation Modes'!J46,'Operation Modes'!$K$2,'Operation Modes'!K46,'Operation Modes'!$L$2,'Operation Modes'!L46,'Operation Modes'!$M$2,'Operation Modes'!M46,'Operation Modes'!$N$2,'Operation Modes'!N46)","v":"OPT"}]
[null,"GPIOA","OPT","OPT","OPT","OPT","OPT","OPT","OPT","OPT","OPT","OPT","OPT","OFF",null,null,"GPIOB",{"$f":"_xlfn.SWITCH('Subsystem Inputs'!$B$2,'Operation Modes'!$C$2,'Operation Modes'!C47,'Operation Modes'!$D$2,'Operation Modes'!D47,'Operation Modes'!$E$2,'Operation Modes'!E47,'Operation Modes'!$F$2,'Operation Modes'!F47,'Operation Modes'!$G$2,'Operation Modes'!G47,'Operation Modes'!$H$2,'Operation Modes'!H47,'Operation Modes'!$I$2,'Operation Modes'!I47,'Operation Modes'!$J$2,'Operation Modes'!J47,'Operation Modes'!$K$2,'Operation Modes'!K47,'Operation Modes'!$L$2,'Operation Modes'!L47,'Operation Modes'!$M$2,'Operation Modes'!M47,'Operation Modes'!$N$2,'Operation Modes'!N47)","v":"OPT"}]
[null,"GPIOB","OPT","OPT","OPT","OPT","OPT","OPT","OPT","OPT","OPT","OPT","OPT","OFF",null,null,"WWDT0",{"$f":"_xlfn.SWITCH('Subsystem Inputs'!$B$2,'Operation Modes'!$C$2,'Operation Modes'!C48,'Operation Modes'!$D$2,'Operation Modes'!D48,'Operation Modes'!$E$2,'Operation Modes'!E48,'Operation Modes'!$F$2,'Operation Modes'!F48,'Operation Modes'!$G$2,'Operation Modes'!G48,'Operation Modes'!$H$2,'Operation Modes'!H48,'Operation Modes'!$I$2,'Operation Modes'!I48,'Operation Modes'!$J$2,'Operation Modes'!J48,'Operation Modes'!$K$2,'Operation Modes'!K48,'Operation Modes'!$L$2,'Operation Modes'!L48,'Operation Modes'!$M$2,'Operation Modes'!M48,'Operation Modes'!$N$2,'Operation Modes'!N48)","v":"OPT"}]
[null,"WWDT0","OPT","OPT","OPT","OPT","OPT","OPT","OPT","OPT","OPT","OPT","DIS","OFF",null,null,"WWDT1",{"$f":"_xlfn.SWITCH('Subsystem Inputs'!$B$2,'Operation Modes'!$C$2,'Operation Modes'!C49,'Operation Modes'!$D$2,'Operation Modes'!D49,'Operation Modes'!$E$2,'Operation Modes'!E49,'Operation Modes'!$F$2,'Operation Modes'!F49,'Operation Modes'!$G$2,'Operation Modes'!G49,'Operation Modes'!$H$2,'Operation Modes'!H49,'Operation Modes'!$I$2,'Operation Modes'!I49,'Operation Modes'!$J$2,'Operation Modes'!J49,'Operation Modes'!$K$2,'Operation Modes'!K49,'Operation Modes'!$L$2,'Operation Modes'!L49,'Operation Modes'!$M$2,'Operation Modes'!M49,'Operation Modes'!$N$2,'Operation Modes'!N49)","v":"OPT"}]
[null,"WWDT1","OPT","OPT","OPT","OPT","OPT","OPT","OPT","OPT","OPT","OPT","DIS","OFF",null,null,"TRNG",{"$f":"_xlfn.SWITCH('Subsystem Inputs'!$B$2,'Operation Modes'!$C$2,'Operation Modes'!C50,'Operation Modes'!$D$2,'Operation Modes'!D50,'Operation Modes'!$E$2,'Operation Modes'!E50,'Operation Modes'!$F$2,'Operation Modes'!F50,'Operation Modes'!$G$2,'Operation Modes'!G50,'Operation Modes'!$H$2,'Operation Modes'!H50,'Operation Modes'!$I$2,'Operation Modes'!I50,'Operation Modes'!$J$2,'Operation Modes'!J50,'Operation Modes'!$K$2,'Operation Modes'!K50,'Operation Modes'!$L$2,'Operation Modes'!L50,'Operation Modes'!$M$2,'Operation Modes'!M50,'Operation Modes'!$N$2,'Operation Modes'!N50)","v":"OPT"}]
["Analog","TRNG","OPT","OPT","OPT","OPT","OPT","OPT","OFF","OFF","OFF","OFF","OFF","OFF",null,null,"ADC0",{"$f":"_xlfn.SWITCH('Subsystem Inputs'!$B$2,'Operation Modes'!$C$2,'Operation Modes'!C51,'Operation Modes'!$D$2,'Operation Modes'!D51,'Operation Modes'!$E$2,'Operation Modes'!E51,'Operation Modes'!$F$2,'Operation Modes'!F51,'Operation Modes'!$G$2,'Operation Modes'!G51,'Operation Modes'!$H$2,'Operation Modes'!H51,'Operation Modes'!$I$2,'Operation Modes'!I51,'Operation Modes'!$J$2,'Operation Modes'!J51,'Operation Modes'!$K$2,'Operation Modes'!K51,'Operation Modes'!$L$2,'Operation Modes'!L51,'Operation Modes'!$M$2,'Operation Modes'!M51,'Operation Modes'!$N$2,'Operation Modes'!N51)","v":"OPT"}]
[null,"ADC0","OPT","OPT","OPT","OPT","OPT","OPT","OPT","OPT","NS (triggers supported)","NS (triggers supported)","NS (triggers supported)","OFF",null,null,"ADC1",{"$f":"_xlfn.SWITCH('Subsystem Inputs'!$B$2,'Operation Modes'!$C$2,'Operation Modes'!C52,'Operation Modes'!$D$2,'Operation Modes'!D52,'Operation Modes'!$E$2,'Operation Modes'!E52,'Operation Modes'!$F$2,'Operation Modes'!F52,'Operation Modes'!$G$2,'Operation Modes'!G52,'Operation Modes'!$H$2,'Operation Modes'!H52,'Operation Modes'!$I$2,'Operation Modes'!I52,'Operation Modes'!$J$2,'Operation Modes'!J52,'Operation Modes'!$K$2,'Operation Modes'!K52,'Operation Modes'!$L$2,'Operation Modes'!L52,'Operation Modes'!$M$2,'Operation Modes'!M52,'Operation Modes'!$N$2,'Operation Modes'!N52)","v":"OPT"}]
[null,"ADC1","OPT","OPT","OPT","OPT","OPT","OPT","OPT","OPT","NS (triggers supported)","NS (triggers supported)","NS (triggers supported)","OFF",null,null,"DAC0",{"$f":"_xlfn.SWITCH('Subsystem Inputs'!$B$2,'Operation Modes'!$C$2,'Operation Modes'!C53,'Operation Modes'!$D$2,'Operation Modes'!D53,'Operation Modes'!$E$2,'Operation Modes'!E53,'Operation Modes'!$F$2,'Operation Modes'!F53,'Operation Modes'!$G$2,'Operation Modes'!G53,'Operation Modes'!$H$2,'Operation Modes'!H53,'Operation Modes'!$I$2,'Operation Modes'!I53,'Operation Modes'!$J$2,'Operation Modes'!J53,'Operation Modes'!$K$2,'Operation Modes'!K53,'Operation Modes'!$L$2,'Operation Modes'!L53,'Operation Modes'!$M$2,'Operation Modes'!M53,'Operation Modes'!$N$2,'Operation Modes'!N53)","v":"OPT"}]
[null,"DAC0","OPT","OPT","OPT","OPT","OPT","OPT","OPT","OPT","NS","NS","NS","OFF",null,null,"OPA0",{"$f":"_xlfn.SWITCH('Subsystem Inputs'!$B$2,'Operation Modes'!$C$2,'Operation Modes'!C54,'Operation Modes'!$D$2,'Operation Modes'!D54,'Operation Modes'!$E$2,'Operation Modes'!E54,'Operation Modes'!$F$2,'Operation Modes'!F54,'Operation Modes'!$G$2,'Operation Modes'!G54,'Operation Modes'!$H$2,'Operation Modes'!H54,'Operation Modes'!$I$2,'Operation Modes'!I54,'Operation Modes'!$J$2,'Operation Modes'!J54,'Operation Modes'!$K$2,'Operation Modes'!K54,'Operation Modes'!$L$2,'Operation Modes'!L54,'Operation Modes'!$M$2,'Operation Modes'!M54,'Operation Modes'!$N$2,'Operation Modes'!N54)","v":"OPT"}]
[null,"OPA0","OPT","NS","NS","OPT","NS","NS","OPT",null,"NS","NS","NS","OFF",null,null,"OPA1",{"$f":"_xlfn.SWITCH('Subsystem Inputs'!$B$2,'Operation Modes'!$C$2,'Operation Modes'!C55,'Operation Modes'!$D$2,'Operation Modes'!D55,'Operation Modes'!$E$2,'Operation Modes'!E55,'Operation Modes'!$F$2,'Operation Modes'!F55,'Operation Modes'!$G$2,'Operation Modes'!G55,'Operation Modes'!$H$2,'Operation Modes'!H55,'Operation Modes'!$I$2,'Operation Modes'!I55,'Operation Modes'!$J$2,'Operation Modes'!J55,'Operation Modes'!$K$2,'Operation Modes'!K55,'Operation Modes'!$L$2,'Operation Modes'!L55,'Operation Modes'!$M$2,'Operation Modes'!M55,'Operation Modes'!$N$2,'Operation Modes'!N55)","v":"OPT"}]
[null,"OPA1","OPT","NS","NS","OPT","NS","NS","OPT",null,"NS","NS","NS","OFF",null,null,"GPAMP",{"$f":"_xlfn.SWITCH('Subsystem Inputs'!$B$2,'Operation Modes'!$C$2,'Operation Modes'!C56,'Operation Modes'!$D$2,'Operation Modes'!D56,'Operation Modes'!$E$2,'Operation Modes'!E56,'Operation Modes'!$F$2,'Operation Modes'!F56,'Operation Modes'!$G$2,'Operation Modes'!G56,'Operation Modes'!$H$2,'Operation Modes'!H56,'Operation Modes'!$I$2,'Operation Modes'!I56,'Operation Modes'!$J$2,'Operation Modes'!J56,'Operation Modes'!$K$2,'Operation Modes'!K56,'Operation Modes'!$L$2,'Operation Modes'!L56,'Operation Modes'!$M$2,'Operation Modes'!M56,'Operation Modes'!$N$2,'Operation Modes'!N56)","v":"OPT"}]
[null,"GPAMP","OPT","OPT","OPT","OPT","OPT","OPT","OPT","OPT","NS","NS","NS","OFF",null,null,"COMP0",{"$f":"_xlfn.SWITCH('Subsystem Inputs'!$B$2,'Operation Modes'!$C$2,'Operation Modes'!C57,'Operation Modes'!$D$2,'Operation Modes'!D57,'Operation Modes'!$E$2,'Operation Modes'!E57,'Operation Modes'!$F$2,'Operation Modes'!F57,'Operation Modes'!$G$2,'Operation Modes'!G57,'Operation Modes'!$H$2,'Operation Modes'!H57,'Operation Modes'!$I$2,'Operation Modes'!I57,'Operation Modes'!$J$2,'Operation Modes'!J57,'Operation Modes'!$K$2,'Operation Modes'!K57,'Operation Modes'!$L$2,'Operation Modes'!L57,'Operation Modes'!$M$2,'Operation Modes'!M57,'Operation Modes'!$N$2,'Operation Modes'!N57)","v":"OPT"}]
[null,"COMP0","OPT","OPT","OPT","OPT","OPT","OPT","OPT","OPT","OPT","OPT","OPT","OFF",null,null,"COMP1",{"$f":"_xlfn.SWITCH('Subsystem Inputs'!$B$2,'Operation Modes'!$C$2,'Operation Modes'!C58,'Operation Modes'!$D$2,'Operation Modes'!D58,'Operation Modes'!$E$2,'Operation Modes'!E58,'Operation Modes'!$F$2,'Operation Modes'!F58,'Operation Modes'!$G$2,'Operation Modes'!G58,'Operation Modes'!$H$2,'Operation Modes'!H58,'Operation Modes'!$I$2,'Operation Modes'!I58,'Operation Modes'!$J$2,'Operation Modes'!J58,'Operation Modes'!$K$2,'Operation Modes'!K58,'Operation Modes'!$L$2,'Operation Modes'!L58,'Operation Modes'!$M$2,'Operation Modes'!M58,'Operation Modes'!$N$2,'Operation Modes'!N58)","v":"OPT"}]
[null,"COMP1","OPT","OPT","OPT","OPT","OPT","OPT","OPT","OPT","OPT","OPT","OPT","OFF",null,null,"COMP2",{"$f":"_xlfn.SWITCH('Subsystem Inputs'!$B$2,'Operation Modes'!$C$2,'Operation Modes'!C59,'Operation Modes'!$D$2,'Operation Modes'!D59,'Operation Modes'!$E$2,'Operation Modes'!E59,'Operation Modes'!$F$2,'Operation Modes'!F59,'Operation Modes'!$G$2,'Operation Modes'!G59,'Operation Modes'!$H$2,'Operation Modes'!H59,'Operation Modes'!$I$2,'Operation Modes'!I59,'Operation Modes'!$J$2,'Operation Modes'!J59,'Operation Modes'!$K$2,'Operation Modes'!K59,'Operation Modes'!$L$2,'Operation Modes'!L59,'Operation Modes'!$M$2,'Operation Modes'!M59,'Operation Modes'!$N$2,'Operation Modes'!N59)","v":"OPT"}]
[null,"COMP2","OPT","OPT","OPT","OPT","OPT","OPT","OPT","OPT","OPT","OPT","OPT","OFF",null,null,"IO MUX and Wakeup",{"$f":"_xlfn.SWITCH('Subsystem Inputs'!$B$2,'Operation Modes'!$C$2,'Operation Modes'!C60,'Operation Modes'!$D$2,'Operation Modes'!D60,'Operation Modes'!$E$2,'Operation Modes'!E60,'Operation Modes'!$F$2,'Operation Modes'!F60,'Operation Modes'!$G$2,'Operation Modes'!G60,'Operation Modes'!$H$2,'Operation Modes'!H60,'Operation Modes'!$I$2,'Operation Modes'!I60,'Operation Modes'!$J$2,'Operation Modes'!J60,'Operation Modes'!$K$2,'Operation Modes'!K60,'Operation Modes'!$L$2,'Operation Modes'!L60,'Operation Modes'!$M$2,'Operation Modes'!M60,'Operation Modes'!$N$2,'Operation Modes'!N60)","v":"EN"}]
["IO MUX and IO Wakeup",null,"EN","EN","EN","EN","EN","EN","EN","EN","EN","EN","EN","DIS w/WAKE",null,null,"VDD PRGM/ERASE",{"$f":"'Subsystem Inputs'!B5","v":3.3}]
[null,null,null,null,null,null,null,null,null,null,null,null,null,null,null,null,"FLASH PGM","OPT"]
[null,null,null,null,null,null,null,null,null,null,null,null,null,null,null,null,"FLASH ERASE","OPT"]
[]
[null,null,null,null,null,null,null,{"$f":"_xlfn.SWITCH('Operation Modes'!R2,'Operation Modes'!T2,'Operation Modes'!F65,'Operation Modes'!T3,'Operation Modes'!F65,'Operation Modes'!T4,'Drop Down Lists'!F3:F5,'Operation Modes'!T5,'Operation Modes'!F65)","v":0}]

{"sheet":"External Data Aquisition","index":8,"n_rows":32,"n_cols":7,"rows_kept":32,"cut":false,"hidden":true,"merged":[[27,0,28,6]]}
[]
[]
[]
[]
[]
[]
[]
[]
[]
[]
[]
[]
[]
[]
[]
[]
[]
[]
[]
[]
[]
[]
[]
[]
[]
[]
[]
["External DMM Data Acquisition"]
[]
["Target Device","Port","Baud Rate","Measurement","Acq. Frequency","Operation Mode","Add Active Peripherals"]
["DMM1",2,9600,"Current","Single Shot","Run 0","Add a Peripheral"]
[null,null,null,null,null,null,"GPIOB"]

{"sheet":"Drop Down Lists","index":9,"n_rows":92,"n_cols":15,"rows_kept":92,"cut":false,"hidden":true,"merged":[[70,1,70,2],[41,10,46,10],[47,10,51,10],[52,10,54,10],[15,0,15,12],[36,6,36,7],[41,6,41,7],[31,0,31,14],[36,3,36,5],[56,0,56,9],[61,4,61,5],[20,2,20,3],[61,1,61,2],[65,1,65,2],[61,7,61,9],[27,2,27,3],[1,13,1,14],[0,0,0,14],[56,11,56,12],[36,13,36,14]]}
["Clocks and Scenario Options"]
["Ambient Temperature","Operation Mode","Mem Exec. Source","SYSPLL","MCLK Frequency","SYSOSC","HFXT","MFCLK","MFPCLK","LFCLK Monitor","ULPCLK Freq","LFOSC/ LFXT","DMA","Unused Pin Configuration"]
["-40C","Run 0","Flash","--Select Option--","80 MHz","--Select Option--","--Select Option--","--Select Option--","--Select Option--","--Select Option--","4MHz","--Select Option--","--Select Option--","Direction","Configure Output"]
["25C","Run 1","SRAM","EN","48 MHz","EN","EN","EN","EN","EN","32kHz","LFOSC","EN","--Select Option--","--Select Option--"]
["85C","Run 2",null,"DIS","32 MHz","DIS","DIS","DIS","DIS","DIS",null,"LFXT","DIS","Output","Low"]
["105C","Sleep 0","EN","SYSPLL FREQ","4 MHz","SYSOSC FREQ","HFXT Freq Source",null,null,null,null,null,null,"Input","High"]
["125C","Sleep 1","DIS","--Select Frequency--","MCLK Monitor","--Select Frequency--","--Select Frequency--",null,null,null,null,null,null,null,"--Select Option--"]
[null,"Sleep 2",null,"48 MHz","--Select Option--","32MHz","4MHz",null,null,null,null,null,null,null,"No Resistor"]
[null,"Stop 0","tPROG (WORD, 64)","80 MHz","EN","4MHz","48MHz",null,null,null,null,null,null,null,"Pull-Up Resistor"]
[null,"Stop 1","tPROG (SEC, 64)",null,"DIS",null,null,null,null,null,null,null,null,null,"Pull-Down Resistor"]
[null,"Stop 2","tERASE (SEC)"]
[null,"Standby 0","tERASE (BANK)"]
[null,"Standby 1"]
[null,"Shutdown"]
[]
["PD1"]
["CRC","UART3","SPI0","SPI1","MATHACL","AES","MCAN0","TIMA0","TIMA1","TIMG6"," TIMG7","TIMG1","TIMG12"]
["--Select Option--","--Select Option--","--Select Option--","--Select Option--","--Select Option--","--Select Option--","--Select Option--","--Select Option--","--Select Option--","--Select Option--","--Select Option--","--Select Option--","--Select Option--"]
["EN","EN","EN","EN","EN","EN","EN","EN","EN","EN","EN","EN","EN"]
["DIS","DIS","DIS","DIS","DIS","DIS","DIS","DIS","DIS","DIS","DIS","DIS","DIS"]
[null,"UART Data Rate","SPI Data Rate"]
[null,"--Select Data Rate--","--Select Data Rate--","--Select Data Rate--"]
[null,"80 MHz","1MHz","1MHz"]
[null,"40 MHz","2MHz","2MHz"]
[null,"10 MHz","4MHz","4MHz"]
[null,"5 MHz","8MHz","8MHz"]
[null,null,"16MHz","16MHz"]
[null,null,"TX/RX Mode"]
[null,null,"Single Shot","Single Shot"]
[null,null,"Continuous","Continuous"]
[]
["PD0"]
["TIMG0","TIMG8","RTC","UART0","UART1","UART2","I2C0","I2C1","GPIOA","GPIOB",null,"WWDT0","WWDT1"]
["--Select Option--","--Select Option--","--Select Option--","--Select Option--","--Select Option--","--Select Option--","--Select Option--","--Select Option--","--Select Option--","--Select Option--",null,"--Select Option--","--Select Option--"]
["EN","EN","EN","EN","EN","EN","EN","EN","EN","EN",null,"EN","EN"]
["DIS","DIS","DIS","DIS","DIS","DIS","DIS","DIS","DIS","DIS",null,"DIS","DIS"]
[null,null,"RTC Interrupt Freq","UART Data Rate",null,null,"I2C Modes",null,"GPIO Type","Drive Strength","GPIO Status","Mode","CLKDIV","PER Count"]
[null,null,"--Select Interrupt Freq--","--Select Data Rate--","--Select Data Rate--","--Select Data Rate--","--Select Option--","--Select Option--","--Select Option--","--Select Option--","Low","--Select Option--","DIV = 1",0,{"$f":"2^25","v":33554432}]
[null,null,"0.5Hz","80 MHz","80 MHz","80 MHz","Standard Mode","Controller Mode","Standard Drive (SDIO)","1.5 mA","High","Watchdog","DIV = 2",1,{"$f":"2^21","v":2097152}]
[null,null,"1 Hz","40 MHz","40 MHz","40 MHz","Fast Mode","Target Mode","High Speed (HSIO)","2 mA","High-Z","Interval","DIV = 3",2,{"$f":"2^18","v":262144}]
[null,null,"2 Hz","10 MHz","10 MHz","10 MHz","Fast Mode Plus",null,"High Drive (HDIO)","6 mA",null,null,"DIV = 4",3,{"$f":"2^15","v":32768}]
[null,null,"4 Hz","5 MHz","5 MHz","5 MHz","I2C Data Rate",null,"5V Open Drain (ODIO)","--Select Option--","High Speed (HSIO)",null,"DIV = 5",4,{"$f":"2^12","v":4096}]
[null,null,"8 Hz",null,null,null,"Standard","--Select Option--",null,"1.5 mA",null,null,"DIV = 6",5,{"$f":"2^10","v":1024}]
[null,null,"16 Hz",null,null,null,null,"2 MHz",null,"2 mA",null,null,"DIV = 7",6,{"$f":"2^8","v":256}]
[null,null,"32 Hz",null,null,null,null,"32 MHz",null,"3 mA",null,null,"DIV = 8",7,{"$f":"2^6","v":64}]
[null,null,"64 Hz",null,null,null,"Fast Mode","--Select Option--",null,"4 mA"]
[null,null,"128 Hz",null,null,null,null,"8 MHz",null,"6 mA"]
[null,null,"256 Hz",null,null,null,null,"32 MHz",null,"--Select Option--","High Drive (HDIO)"]
[null,null,"512 Hz",null,null,null,"Fast Mode Plus","--Select Option--",null,"2 mA"]
[null,null,"1024 Hz",null,null,null,null,"20 MHz",null,"6 mA"]
[null,null,"2048 Hz",null,null,null,null,"32 MHz",null,"10 mA"]
[null,null,"4096 Hz",null,null,null,null,null,null,"20 mA"]
[null,null,null,null,null,null,null,null,null,"--Select Option--","5V Open Drain (ODIO)"]
[null,null,null,null,null,null,null,null,null,"4 mA"]
[null,null,null,null,null,null,null,null,null,"8 mA"]
[]
["ANALOG",null,null,null,null,null,null,null,null,null,null,"Mode Duty Percentages"]
["TRNG","ADC0","ADC1","DAC0","OPA0","OPA1","GPAMP","COMPARATOR 0","COMPARATOR 1","COMPARATOR 2",null,5]
["--Select Option--","--Select Option--","--Select Option--","--Select Option--","--Select Option--","--Select Option--","--Select Option--","--Select Option--","--Select Option--","--Select Option--",null,10]
["EN","EN","EN","EN","EN","EN","EN","EN","EN","EN",null,15]
["DIS","DIS","DIS","DIS","DIS","DIS","DIS","DIS","DIS","DIS",null,20]
[null,"Sample FREQ",null,"VREF","OPA Modes",null,"RRI Status","COMP MODE",null,null,null,25]
[null,"--Select Sample Speed--","--Select Sample Speed--","--Select Option--","--Select Option--","--Select Option--","--Select Option--","--Select Option--","--Select Option--","--Select Option--",null,30]
[null,"4MSPS","4MSPS","INT 1.4V","RRI = 0x0, GBW = 0x0 ","RRI = 0x0, GBW = 0x0 ","0x00","High Speed Mode w/DAC","High Speed Mode w/DAC","High Speed Mode w/DAC",null,35]
[null,"5.3MSPS","5.3MSPS","INT 2.5V","RRI = 0x0, GBW = 0x01","RRI = 0x0, GBW = 0x01","0x01 or 0x02","Low Power Mode w/DAC","Low Power Mode w/DAC","Low Power Mode w/DAC",null,40]
[null,"VREF",null,"EXT VDD","RRI = 0x1, GBW = 0x0 ","RRI = 0x1, GBW = 0x0 ",null,"High Speed Mode Comp Only","High Speed Mode Comp Only","High Speed Mode Comp Only",null,45]
[null,"--Select VREF Source--","--Select VREF Source--","Output Code","RRI = 0x1, GBW = 0x01","RRI = 0x1, GBW = 0x01",null,"Low Power Mode Comp Only","Low Power Mode Comp Only","Low Power Mode Comp Only",null,50]
[null,"1.4V Internal","1.4V Internal","--Select Option--",null,null,null,null,null,null,null,55]
[null,"2.5V Internal","2.5V Internal","?",null,null,null,null,null,null,null,60]
[null,"External","External","?",null,null,null,null,null,null,null,65]
[null,"Duty Cycle %",null,"?",null,null,null,null,null,null,null,70]
[null,"--Select % On Time--","--Select % On Time--","Load Resistance",null,null,null,null,null,null,null,75]
[null,5,5,"--Select Option--",null,null,null,null,null,null,null,80]
[null,10,10,"?",null,null,null,null,null,null,null,85]
[null,15,15,"?",null,null,null,null,null,null,null,90]
[null,20,20,"?",null,null,null,null,null,null,null,95]
[null,25,25,null,null,null,null,null,null,null,null,100]
[null,30,30]
[null,35,35]
[null,40,40]
[null,45,45]
[null,50,50]
[null,55,55]
[null,60,60]
[null,65,65]
[null,70,70]
[null,75,75]
[null,80,80]
[null,85,85]
[null,90,90]
[null,95,95]
[null,100,100]

{"sheet":"Working Sheet","index":10,"n_rows":61,"n_cols":12,"rows_kept":61,"cut":false,"hidden":true,"merged":[[0,2,0,10],[14,3,14,5]]}
["Peripheral Testing Needs","Owner","ADC"]
["TIMG, TIMA","Diego","Conversion Mode","ADC Clock Source","Sample Clock Divider","Supplied Operational Voltage","Reference Voltage","Averaging Mode","Burn Out Current Source","Window Comparator mode","Sampling Resolution","DMA or CPU transfer"]
["UART 0,1,2,3","Diego","Single","SYSOSC",1,1.62,"Internal 2.5V","On","Enable","Enabled ",14]
["GPIO A",null,"Sequence","ULPCLK",2,"…","Internal 1.4V","Off","Disable","Disabled",12]
["GPIO B",null,"Simultaneous","HFCLK",4,"…","External ",null,null,null,10]
["WWDT 0","Dennis",null,null,8,"3.6V",null,"Hardware Averaging Numerator",null,null,8]
["WWDT 1","Dennis","SYSOSC","32 MHz",16,null,null,2]
["MATHACL","Brian ","ULPCLK","32 MHz",24,null,null,4]
["AES","Rakesh's team","HFCLK",null,32,null,null,8]
["MCAN0","Rakesh's team",null,null,48,null,null,16]
["CRC","Rakesh's team",null,null,null,null,null,32]
["RTC","Rakesh's team",null,null,null,null,null,64]
["LFCLK Monitor",null,null,null,null,null,null,128]
["MCLK Monitor"]
["I2C0","Brian",null,"I2C",null,null,null,"Hardware Averaging Denominator"]
["I2C1","Brian",null,"Mode","CLK Configuration","Data Sent",null,1]
["ADC0","Prashant",null,"Controller","Standard (100kHz)","0xFF, 0xFF, 0xFF, 0xFF, 0xFF, 0xFF, 0xFF, 0xFF",null,2]
["ADC1","Prashant",null,"Target","Fast Mode (400kHz)",null,null,4]
["SPI 0","Brian",null,null,"Fast Mode Plus (1MHz)",null,null,8]
["SPI 1","Brian",null,null,null,null,null,16]
["DAC","Brian/Prashant",null,null,null,null,null,32]
[null,null,null,null,null,null,null,64]
[null,null,null,"DAC what code it is ",null,null,null,128]
[]
[]
[null,"Don’t Care","Run 0","Run 0","Sleep 0","Run 0","Stop 0","Run 0"]
[null,"Valid Transition","Run 0","Run 1","Sleep 0","Run 1","Stop 0","Run 1"]
[null,"Invalid Transition","Run 0","Run 2","Sleep 0","Run 2","Stop 0","Run 2"]
[null,null,"Run 0","Sleep 0","Sleep 0","Sleep 0","Stop 0","Sleep 0"]
[null,null,"Run 0","Sleep 1","Sleep 0","Sleep 1","Stop 0","Sleep 1"]
[null,null,"Run 0","Sleep 2","Sleep 0","Sleep 2","Stop 0","Sleep 2"]
[null,null,"Run 0","Stop 0","Sleep 0","Stop 0","Stop 0","Stop 0"]
[null,null,"Run 0","Stop 1","Sleep 0","Stop 1","Stop 0","Stop 1"]
[null,null,"Run 0","Stop 2","Sleep 0","Stop 2","Stop 0","Stop 2"]
[null,null,"Run 0","Standby 0","Sleep 0","Standby 0","Stop 0","Standby 0"]
[null,null,"Run 0","Standby 1","Sleep 0","Standby 1","Stop 0","Standby 1"]
[null,null,"Run 0","Shutdown","Sleep 0","Shutdown","Stop 0","Shutdown"]
[null,null,"Run 1","Run 0","Sleep 1","Run 0","Stop 1","Run 0"]
[null,null,"Run 1","Run 1","Sleep 1","Run 1","Stop 1","Run 1"]
[null,null,"Run 1","Run 2","Sleep 1","Run 2","Stop 1","Run 2"]
[null,null,"Run 1","Sleep 0","Sleep 1","Sleep 0","Stop 1","Sleep 0"]
[null,null,"Run 1","Sleep 1","Sleep 1","Sleep 1","Stop 1","Sleep 1"]
[null,null,"Run 1","Sleep 2","Sleep 1","Sleep 2","Stop 1","Sleep 2"]
[null,null,"Run 1","Stop 0","Sleep 1","Stop 0","Stop 1","Stop 0"]
[null,null,"Run 1","Stop 1","Sleep 1","Stop 1","Stop 1","Stop 1"]
[null,null,"Run 1","Stop 2","Sleep 1","Stop 2","Stop 1","Stop 2"]
[null,null,"Run 1","Standby 0","Sleep 1","Standby 0","Stop 1","Standby 0"]
[null,null,"Run 1","Standby 1","Sleep 1","Standby 1","Stop 1","Standby 1"]
[null,null,"Run 1","Shutdown","Sleep 1","Shutdown","Stop 1","Shutdown"]
[null,null,"Run 2","Run 0","Sleep 2","Run 0","Stop 2","Run 0"]
[null,null,"Run 2","Run 1","Sleep 2","Run 1","Stop 2","Run 1"]
[null,null,"Run 2","Run 2","Sleep 2","Run 2","Stop 2","Run 2"]
[null,null,"Run 2","Sleep 0","Sleep 2","Sleep 0","Stop 2","Sleep 0"]
[null,null,"Run 2","Sleep 1","Sleep 2","Sleep 1","Stop 2","Sleep 1"]
[null,null,"Run 2","Sleep 2","Sleep 2","Sleep 2","Stop 2","Sleep 2"]
[null,null,"Run 2","Stop 0","Sleep 2","Stop 0","Stop 2","Stop 0"]
[null,null,"Run 2","Stop 1","Sleep 2","Stop 1","Stop 2","Stop 1"]
[null,null,"Run 2","Stop 2","Sleep 2","Stop 2","Stop 2","Stop 2"]
[null,null,"Run 2","Standby 0","Sleep 2","Standby 0","Stop 2","Standby 0"]
[null,null,"Run 2","Standby 1","Sleep 2","Standby 1","Stop 2","Standby 1"]
[null,null,"Run 2","Shutdown","Sleep 2","Shutdown","Stop 2","Shutdown"]